{"text_format":"1","workbook":"xlsx","n_sheets":15,"sheets":["質疑等連絡票","BELS申請書","2面","2面 （別紙）","3面","4面（建築物全体用）","5面 (非住宅部分用)","7面 (複合建築物の部分（非住宅全体))","設内1","設内3（非住宅用）","掲載承諾書","プレート発注書（任意）","注意事項等","更新履歴","一括印刷用"],"not_rendered":{"charts":0,"images":11,"macros":1,"external_links":4,"defined_names":37,"comments":3,"pivot_tables":0},"unopened":[],"bounds":{"document_bytes":16777216,"sheet_cells":100000,"rows_first":2000,"rows_last":500,"rows_between":2000,"halvings":0,"cell_chars":16384,"cell_head_chars":4096},"cells_cut":0,"cells_raw":0,"read":"whole","date_system":"1900"}

{"sheet":"質疑等連絡票","index":0,"n_rows":45,"n_cols":21,"rows_kept":45,"cut":false,"hidden":false,"merged":[[7,1,7,6],[7,7,7,29],[2,8,2,21],[42,11,42,13],[42,15,42,16],[42,18,42,19],[42,21,42,22],[11,1,12,3],[11,4,12,14],[11,15,11,17],[11,19,11,29],[12,15,12,17],[12,19,12,29],[13,1,13,3],[13,4,13,14],[13,15,13,17],[1,0,1,29],[5,1,5,6],[5,7,5,29],[6,1,6,6],[6,7,6,29],[13,19,13,29],[14,1,14,3],[14,5,14,14],[14,15,14,17],[14,19,14,29],[20,1,21,3],[20,4,21,14],[20,15,20,17],[20,19,20,29],[21,15,21,17],[21,19,21,29],[15,2,15,14],[15,15,15,17],[15,19,15,29],[16,1,17,5],[17,6,17,29],[22,4,22,14],[22,15,22,17],[22,19,22,29],[24,2,24,14],[24,15,24,17],[24,19,24,29],[23,1,23,3],[23,5,23,14],[23,15,23,17],[23,19,23,29],[22,1,22,3],[36,1,37,3],[36,4,37,14],[36,15,36,17],[36,19,36,29],[37,15,37,17],[37,19,37,29],[44,4,44,29],[40,2,40,14],[40,15,40,17],[40,19,40,29],[38,1,38,3],[38,4,38,14],[38,15,38,17],[38,19,38,29],[39,1,39,3],[39,5,39,14],[39,15,39,17],[39,19,39,29]]}
[]
["BELS　質疑等連絡先シート"]
[]
[]
["○建築物の概要"]
[null,"建築物の名称"]
[null,"建　築　主　名"]
[null,"建築物の所在地"]
[]
[]
["●評価料金請求書の送付先"]
[null,"会社名",null,null,null,null,null,null,null,null,null,null,null,null,null,"フリガナ",null,null,null,{"$f":"ASC(PHONETIC(T13))","v":""}]
[null,null,null,null,null,null,null,null,null,null,null,null,null,null,null,"氏　名"]
[null,"所　属",null,null,null,null,null,null,null,null,null,null,null,null,null,"TEL"]
[null,"住　所",null,null,"〒",null,null,null,null,null,null,null,null,null,null,"FAX"]
[null,null,null,null,null,null,null,null,null,null,null,null,null,null,null,"E-mail"]
[null,"請求書名宛先"]
[]
[]
["●質疑書"]
[null,"会社名",null,null,null,null,null,null,null,null,null,null,null,null,null,"フリガナ",null,null,null,{"$f":"ASC(PHONETIC(T22))","v":""}]
[null,null,null,null,null,null,null,null,null,null,null,null,null,null,null,"氏　名"]
[null,"所　属",null,null,null,null,null,null,null,null,null,null,null,null,null,"TEL"]
[null,"住　所",null,null,"〒",null,null,null,null,null,null,null,null,null,null,"FAX"]
[null,null,null,null,null,null,null,null,null,null,null,null,null,null,null,"E-mail"]
[]
["●評価書の交付方法・送付先等"]
[null,null,"電子データ交付希望（加算料金はかかりません）"]
[null,null,"・WEB申請の場合：WEBに電子データをアップします。（下欄記載不要）"]
[null,null,"・WEB申請以外の場合：電子データの送信先を下欄に記載してください。"]
[null,null,"紙面の交付希望（1通につき2,200円（税込）加算されます）"]
[null,null,"・紙面の評価書の送付先を下欄に記載してください。"]
[]
["●評価書の送信先・送付先　※副本の送信・送付をご希望の場合も記載してください。"]
[null,null,null,"評価料金請求書等送付先担当者と同じ（下欄記載不要。）",null,null,null,null,null,null,null,null,null,null,null,null,null,null,null,"質疑書担当者と同じ（下欄記載不要。）"]
[]
[null,"会社名",null,null,null,null,null,null,null,null,null,null,null,null,null,"フリガナ",null,null,null,{"$f":"ASC(PHONETIC(T38))","v":""}]
[null,null,null,null,null,null,null,null,null,null,null,null,null,null,null,"氏　名"]
[null,"所　属",null,null,null,null,null,null,null,null,null,null,null,null,null,"TEL"]
[null,"住　所",null,null,"〒",null,null,null,null,null,null,null,null,null,null,"FAX"]
[null,null,null,null,null,null,null,null,null,null,null,null,null,null,null,"E-mail"]
[]
["●評価書交付希望日",null,null,null,null,null,null,null,null,null,null,null,null,null,"年",null,null,"月",null,null,"日"]
[]
["●その他"]

{"sheet":"BELS申請書","index":1,"n_rows":49,"n_cols":41,"rows_kept":49,"cut":false,"hidden":false,"merged":[[6,23,6,26],[0,0,0,33],[2,0,2,33],[44,1,44,32],[47,0,47,33],[48,0,48,32],[3,0,3,33],[17,19,17,32],[18,20,20,32],[27,1,29,32],[13,19,13,32],[5,0,5,33],[6,28,6,29],[6,31,6,32],[14,20,16,32],[21,19,21,32],[41,3,41,11],[41,18,41,23],[40,1,40,13]]}
["（別記様式第７号）"]
[]
["BELSに係る評価申請書"]
["（第一面）"]
[]
[]
[null,null,null,null,null,null,null,null,null,null,null,null,null,null,null,null,null,null,null,null,null,null,null,null,null,null,null,"年",null,null,"月",null,null,"日"]
[]
["一般財団法人ベターリビング　殿"]
[]
[]
[]
[]
[null,null,null,null,null,null,null,null,null,null,null,null,null,null,null,null,null,null,null,"申請者の氏名又は名称"]
[null,null,null,null,null,null,null,null,null,null,null,null,null,null,null,null,null,null,null,null,null,null,null,null,null,null,null,null,null,null,null,null,null,null,null,null,null,null,null,null,{"$f":"IF(AND(U15=\"\",U19=\"\"),0,1)","v":0}]
[]
[]
[null,null,null,null,null,null,null,null,null,null,null,null,null,null,null,null,null,null,null,"代表者の氏名"]
[]
[]
[]
[]
[]
[]
[]
[]
[]
[null,"　BELSに係る評価の申請をします。この申請書及び添付図書に記載の事項は、事実に相違ありません。"]
[]
[]
[]
[]
[]
[]
[]
[]
[]
[]
[]
[null,"※受付欄",null,null,null,null,null,null,null,null,null,null,null,null,"※料金欄"]
[]
[null,null,"第","CBL － BELS － 　　 －",null,null,null,null,null,null,null,null,"号",null,null,null,null,"￥",null,null,null,null,null,null,"(税込)"]
[null,"申請受理者印"]
[]
[null,"＜評価機関からのお願い＞\n BELSに係る評価申請の内容について、個人や個別の建築物が特定されない統計情報として、国土交通省に提供することがございますので、あらかじめご了承のほどお願い申し上げます。\n また、BELS評価書取得物件は、申請書・評価書に記載されている項目について、（一社）住宅性能評価・表示協会ホームページにて、BELS事例紹介として評価結果等の公表をさせていただきます。ただし、個人や個別の建築物が特定される情報については、掲載承諾書にて公開の承諾が得られた場合に限ります。"]
[]
[]
["（注意）"]
["　１．申請者が法人である場合には、代表者の氏名を併せて記載してください。"]

{"sheet":"2面","index":2,"n_rows":72,"n_cols":47,"rows_kept":72,"cut":false,"hidden":false,"merged":[[6,39,7,41],[6,38,7,38],[34,38,37,38],[23,38,26,38],[25,39,25,42],[51,2,52,36],[42,9,42,36],[43,14,43,19],[43,22,43,27],[44,8,44,36],[45,6,45,36],[46,7,46,36],[41,12,41,36],[23,9,23,36],[24,8,24,36],[25,6,25,36],[26,7,26,36],[32,7,32,9],[32,16,32,21],[32,26,32,31],[33,12,33,36],[34,9,34,36],[35,8,35,36],[36,6,36,36],[37,7,37,36],[22,12,22,36],[1,0,1,37],[6,12,6,36],[7,9,7,36],[8,8,8,36],[9,6,9,36],[10,7,10,36],[14,12,14,36],[15,9,15,36],[16,8,16,36],[17,6,17,36],[18,7,18,36]]}
[]
["(第二面)"]
[]
[null,"申請者等の概要"]
[null,"【1.申請者】"]
[]
[null,null,"【氏名又は名称のフリガナ】",null,null,null,null,null,null,null,null,null,{"$f":"ASC(PHONETIC(BELS申請書!U15)&\"　\"&PHONETIC(BELS申請書!U19))","v":" "},null,null,null,null,null,null,null,null,null,null,null,null,null,null,null,null,null,null,null,null,null,null,null,null,null,"｝","手入力も可"]
[null,null,"【氏名又は名称】",null,null,null,null,null,null,{"$f":"IF(BELS申請書!AO15=0,(\"BELS申請書を記入して下さい\"),(BELS申請書!U15&\"　\"&BELS申請書!U19))","v":"BELS申請書を記入して下さい"}]
[null,null,"【郵便番号】"]
[null,null,"【住所】"]
[null,null,"【電話番号】"]
[]
[null,"【2.代理者】"]
[]
[null,null,"【氏名又は名称のフリガナ】",null,null,null,null,null,null,null,null,null,{"$f":"ASC(PHONETIC(J16))","v":""},null,null,null,null,null,null,null,null,null,null,null,null,null,null,null,null,null,null,null,null,null,null,null,null,null,"←","手入力も可"]
[null,null,"【氏名又は名称】"]
[null,null,"【郵便番号】"]
[null,null,"【住所】"]
[null,null,"【電話番号】"]
[]
[null,"【3.建築主等】"]
[]
[null,null,"【氏名又は名称のフリガナ】",null,null,null,null,null,null,null,null,null,{"$f":"IF(AU26=1,M7,ASC(PHONETIC(J24)))","v":""},null,null,null,null,null,null,null,null,null,null,null,null,null,null,null,null,null,null,null,null,null,null,null,null,null,"←","手入力も可"]
[null,null,"【氏名又は名称】",null,null,null,null,null,null,{"$f":"IF($AU$26=1,J8,\"\")","v":""},null,null,null,null,null,null,null,null,null,null,null,null,null,null,null,null,null,null,null,null,null,null,null,null,null,null,null,null,"｝"]
[null,null,"【郵便番号】",null,null,null,null,null,{"$f":"IF($AU$26=1,I9,\"\")","v":""}]
[null,null,"【住所】",null,null,null,{"$f":"IF($AU$26=1,G10,\"\")","v":""},null,null,null,null,null,null,null,null,null,null,null,null,null,null,null,null,null,null,null,null,null,null,null,null,null,null,null,null,null,null,null,null,null,null,null,null,null,null,false,{"$f":"AT26*1","v":0}]
[null,null,"【電話番号】",null,null,null,null,{"$f":"IF($AU$26=1,H11,\"\")","v":""}]
[null,null,"【建築主等と申請物件の利用関係】"]
[null,null,null,null,"自己所有物件",null,null,null,null,null,null,null,"賃貸物件",null,null,null,null,null,"給与住宅",null,null,null,null,null,null,"分譲物件",null,null,null,null,null,null,"その他"]
[]
[null,"【4.設計者等】"]
[]
[null,null,"【資格】",null,null,null,"（",null,null,null,"）","建築士",null,null,null,"（",null,null,null,null,null,null,"）","登録",null,null,null,null,null,null,null,null,"号",null,null,null,null,null,null,null,null,null,null,null,null,"一級"]
[null,null,"【氏名又は名称のフリガナ】",null,null,null,null,null,null,null,null,null,{"$f":"ASC(PHONETIC(J35))","v":""},null,null,null,null,null,null,null,null,null,null,null,null,null,null,null,null,null,null,null,null,null,null,null,null,null,"←","手入力も可",null,null,null,null,null,"二級"]
[null,null,"【氏名又は名称】",null,null,null,null,null,null,{"$f":"IF($AU$37=1,J16,\"\")","v":""},null,null,null,null,null,null,null,null,null,null,null,null,null,null,null,null,null,null,null,null,null,null,null,null,null,null,null,null,"｝",null,null,null,null,null,null,"木造"]
[null,null,"【郵便番号】",null,null,null,null,null,{"$f":"IF($AU$37=1,I17,\"\")","v":""}]
[null,null,"【住所】",null,null,null,{"$f":"IF($AU$37=1,G18,\"\")","v":""},null,null,null,null,null,null,null,null,null,null,null,null,null,null,null,null,null,null,null,null,null,null,null,null,null,null,null,null,null,null,null,null,null,null,null,null,null,null,false,{"$f":"AT37*1","v":0}]
[null,null,"【電話番号】",null,null,null,null,{"$f":"IF($AU$37=1,H19,\"\")","v":""}]
[]
[null,"【5.工事施工者】"]
[]
[null,null,"【氏名又は名称のフリガナ】",null,null,null,null,null,null,null,null,null,{"$f":"ASC(PHONETIC(J43))","v":""},null,null,null,null,null,null,null,null,null,null,null,null,null,null,null,null,null,null,null,null,null,null,null,null,null,"←","手入力も可"]
[null,null,"【氏名又は名称】"]
[null,null,"【営業所名】",null,null,null,null,null,"建設業の許可",null,null,null,null,"（",null,null,null,null,null,null,"）","第",null,null,null,null,null,null,"号"]
[null,null,"【郵便番号】"]
[null,null,"【住所】"]
[null,null,"【電話番号】"]
[]
[null,"【6.備考】"]
[]
[null,null,"国庫補助事業への評価書等活用有無",null,null,null,null,null,null,null,null,null,null,null,null,null,null,null,null,"有り（予定を含む）",null,null,null,null,null,null,null,null,null,"無し"]
[]
[]
[]
[null,"（注意）"]
[null,"1.","【3.建築主等】既存建築物の場合、所有者等とします。"]
[null,null,"また、「建築主等と申請物件の利用関係」における用語の定義は次のとおりです。"]
[null,null,null,"①","自己所有物件（持ち家、自社ビル等）"]
[null,null,null,null,"申請の対象とする範囲の過半以上を建築主が居住する目的又は自社の事務所等として使用する（予定の）もの。"]
[null,null,null,"②","賃貸物件（賃貸住宅、賃貸オフィス等）"]
[null,null,null,null,"申請の対象とする範囲の過半以上を建築主又は建築主より委託された会社等が、賃貸借の契約に基づき他人に貸し出す（予定の）もの"]
[null,null,null,"③","給与住宅（社宅、公務員住宅等）"]
[null,null,null,null,"申請の対象とする範囲の過半以上を建築主（会社又は団体等）が所有又は管理して、その職員を職務の都合上又は給与の一部として"]
[null,null,null,null,"居住させる（予定の）もの。この場合家賃の支払いの有無を問わない。"]
[null,null,null,"④","分譲物件（分譲住宅、分譲オフィス等）"]
[null,null,null,null,"申請の対象とする範囲の過半以上を販売する（予定の）もの"]
[null,null,null,"⑤その他"]
[null,null,null,null,"上記以外のもの"]
[null,"2.","【4.設計者等】既存建築物の場合、申請に係る設計内容等に責任を負うことができる者とします。"]
[null,null,"なお、資格欄については、資格を持っていない場合は記載不要です。"]
[null,"3.","【5.工事施工者】既存建築物において工事を伴わない場合は、記載不要です。"]
[null,"4.","申請者等が２以上のときは、別紙に必要な事項を記載してください。"]

{"sheet":"2面 （別紙）","index":3,"n_rows":54,"n_cols":40,"rows_kept":54,"cut":false,"hidden":false,"merged":[[10,7,10,36],[1,0,1,37],[6,12,6,36],[7,9,7,36],[8,8,8,36],[9,6,9,36],[23,9,23,36],[24,8,24,36],[25,6,25,36],[26,7,26,36],[14,12,14,36],[15,9,15,36],[16,8,16,36],[17,6,17,36],[18,7,18,36],[22,12,22,36],[50,7,50,36],[47,9,47,36],[48,8,48,36],[49,6,49,36],[30,12,30,36],[31,9,31,36],[32,8,32,36],[33,6,33,36],[34,7,34,36],[38,12,38,36],[39,9,39,36],[40,8,40,36],[41,6,41,36],[42,7,42,36],[46,12,46,36]]}
[]
["(第二面・別紙)"]
[]
[null,"その他の申請者の概要"]
[null,"【その他の申請者-1】"]
[]
[null,null,"【氏名又は名称のフリガナ】",null,null,null,null,null,null,null,null,null,{"$f":"ASC(PHONETIC(J8))","v":""},null,null,null,null,null,null,null,null,null,null,null,null,null,null,null,null,null,null,null,null,null,null,null,null,null,null,"←手入力も可"]
[null,null,"【氏名又は名称】"]
[null,null,"【郵便番号】"]
[null,null,"【住所】"]
[null,null,"【電話番号】"]
[]
[null,"【その他の申請者-2】"]
[]
[null,null,"【氏名又は名称のフリガナ】",null,null,null,null,null,null,null,null,null,{"$f":"ASC(PHONETIC(J16))","v":""},null,null,null,null,null,null,null,null,null,null,null,null,null,null,null,null,null,null,null,null,null,null,null,null,null,null,"←手入力も可"]
[null,null,"【氏名又は名称】"]
[null,null,"【郵便番号】"]
[null,null,"【住所】"]
[null,null,"【電話番号】"]
[]
[null,"【その他の申請者-3】"]
[]
[null,null,"【氏名又は名称のフリガナ】",null,null,null,null,null,null,null,null,null,{"$f":"ASC(PHONETIC(J24))","v":""},null,null,null,null,null,null,null,null,null,null,null,null,null,null,null,null,null,null,null,null,null,null,null,null,null,null,"←手入力も可"]
[null,null,"【氏名又は名称】"]
[null,null,"【郵便番号】"]
[null,null,"【住所】"]
[null,null,"【電話番号】"]
[]
[null,"【その他の申請者-4】"]
[]
[null,null,"【氏名又は名称のフリガナ】",null,null,null,null,null,null,null,null,null,{"$f":"ASC(PHONETIC(J32))","v":""},null,null,null,null,null,null,null,null,null,null,null,null,null,null,null,null,null,null,null,null,null,null,null,null,null,null,"←手入力も可"]
[null,null,"【氏名又は名称】"]
[null,null,"【郵便番号】"]
[null,null,"【住所】"]
[null,null,"【電話番号】"]
[]
[null,"【その他の申請者-5】"]
[]
[null,null,"【氏名又は名称のフリガナ】",null,null,null,null,null,null,null,null,null,{"$f":"ASC(PHONETIC(J40))","v":""},null,null,null,null,null,null,null,null,null,null,null,null,null,null,null,null,null,null,null,null,null,null,null,null,null,null,"←手入力も可"]
[null,null,"【氏名又は名称】"]
[null,null,"【郵便番号】"]
[null,null,"【住所】"]
[null,null,"【電話番号】"]
[]
[null,"【その他の申請者-6】"]
[]
[null,null,"【氏名又は名称のフリガナ】",null,null,null,null,null,null,null,null,null,{"$f":"ASC(PHONETIC(J48))","v":""},null,null,null,null,null,null,null,null,null,null,null,null,null,null,null,null,null,null,null,null,null,null,null,null,null,null,"←手入力も可"]
[null,null,"【氏名又は名称】"]
[null,null,"【郵便番号】"]
[null,null,"【住所】"]
[null,null,"【電話番号】"]
[]
[null,"1.","第二面【1.申請者】に記載した申請者以外に連名で申請を行う申請者がいる場合に記載してください。"]
[null,"2.","【その他の申請者】に記載した申請者名称は評価書の別紙となる３枚目に掲載されます。"]

{"sheet":"3面","index":4,"n_rows":72,"n_cols":50,"rows_kept":72,"cut":false,"hidden":false,"merged":[[42,1,42,36],[23,15,23,18],[27,9,27,12],[27,23,27,26],[31,10,31,14],[32,10,32,22],[37,10,37,22],[40,15,40,36],[25,19,25,22],[30,20,30,23],[15,10,15,19],[15,25,15,34],[17,11,17,20],[19,21,19,23],[19,25,19,26],[19,28,19,29],[19,31,19,32],[19,33,19,35],[1,0,1,37],[5,9,5,36],[7,11,7,13],[11,9,11,36],[13,13,13,16],[13,25,13,28]]}
[]
["(第三面)"]
[]
[null,"建築物に関する事項"]
[]
[null,"【1.建築物の所在地】",null,null,null,null,null,null,null,{"$f":"IF(質疑等連絡票!H8=\"\",\"質疑等連絡票を記入して下さい\",質疑等連絡票!H8)","v":"質疑等連絡票を記入して下さい"},null,null,null,null,null,null,null,null,null,null,null,null,null,null,null,null,null,null,null,null,null,null,null,null,null,null,null,null,null,"←質疑等連絡票とリンク"]
[]
[null,"【2.該当する地域の区分】",null,null,null,null,null,null,null,null,"（",null,null,null,"）","地域",null,null,null,null,null,null,null,null,null,null,null,null,null,null,null,null,null,null,null,null,null,null,null,null,null,null,1,2,3,4,5,6,7,8]
[]
[null,"【3.建築物の用途】",null,null,null,null,null,null,null,null,null,null,null,null,null,null,null,null,null,null,null,null,null,null,null,null,null,null,null,null,null,null,null,null,null,null,null,null,null,null,null,null,{"$f":"L8:L8","v":0}]
[]
[null,"【4.建築物の名称】",null,null,null,null,null,null,null,{"$f":"IF(質疑等連絡票!H6=\"\",\"質疑等連絡票を記入して下さい\",質疑等連絡票!H6)","v":"質疑等連絡票を記入して下さい"},null,null,null,null,null,null,null,null,null,null,null,null,null,null,null,null,null,null,null,null,null,null,null,null,null,null,null,null,null,"←質疑等連絡票とリンク"]
[]
[null,"【5.建築物の階数】",null,null,null,null,null,null,null,"（地上）",null,null,null,null,null,null,null,"階",null,null,null,"（地下）",null,null,null,null,null,null,null,"階"]
[]
[null,"【6.建築物の構造】",null,null,null,null,null,null,null,null,null,null,null,null,null,null,null,null,null,null,null,"造",null,"一部",null,null,null,null,null,null,null,null,null,null,null,null,"造"]
[]
[null,"【7.建築物の延べ面積】",null,null,null,null,null,null,null,null,null,null,null,null,null,null,null,null,null,null,null,"㎡",null,null,"※建築基準法上の延べ面積"]
[]
[null,"【8.建築物の新築竣工時期（計画中の場合は予定時期）】",null,null,null,null,null,null,null,null,null,null,null,null,null,null,null,null,null,null,null,null,null,null,"年",null,null,"月",null,null,"日","又は",null,null,null,null,null,null,null,"←評価書の記載事項となりますので、必ず『日』又は『上・中・下旬』を記載してください"]
[null,null,"※たとえば、「2021年4月中旬」が新築竣工予定時期の場合、「2021年4月」、日を空欄、右に「中旬」と入力してください。",null,null,null,null,null,null,null,null,null,null,null,null,null,null,null,null,null,null,null,null,null,null,null,null,null,null,null,null,null,null,null,null,null,null,null,null,"　 "]
[null,"【9.申請の対象とする範囲】"]
[null,null,null,null,"一戸建ての住宅",null,null,null,null,null,null,null,null,null,null,null,null,null,null,null,null,null,null,null,null,null,null,null,null,null,"（→申請書第四面作成）"]
[null,null,null,null,"共同住宅等の住棟",null,null,null,null,null,null,"(住戸数（",null,null,null,null,null,null,null,"戸））",null,null,null,null,null,null,null,null,null,null,"（→申請書第四面作成）"]
[null,null,null,null,"建築物全体（非住宅建築物の全体）　　",null,null,null,null,null,null,null,null,null,null,null,null,null,null,null,null,null,null,null,null,null,null,null,null,null,"（→申請書第四面作成）"]
[null,null,null,null,"建築物全体（複合建築物の全体）",null,null,null,null,null,null,null,null,null,null,"(住戸数（",null,null,null,null,null,null,null,"戸））",null,null,null,null,null,null,"（→申請書第四面作成）"]
[null,null,null,null,"住戸(共同住宅等・複合建築物の住戸部分の場合）"]
[null,null,null,null,"（建築物全体",null,null,null,"（",null,null,null,null,"戸）","のうち評価申請対象住戸",null,null,null,null,null,null,null,"（",null,null,null,null,"戸））",null,null,"（→申請書第六面作成）"]
[null,null,null,null,"住戸（店舗等併用住宅の住戸部分）",null,null,null,null,null,null,null,null,null,null,null,null,null,null,null,null,null,null,null,null,null,null,null,null,null,"（→申請書第六面作成）"]
[null,null,null,null,"複合建築物の部分（非住宅部分全体）",null,null,null,null,null,null,null,null,null,null,null,null,null,null,null,null,null,null,null,null,null,null,null,null,null,"（→申請書第七面作成）"]
[null,null,null,null,"複合建築物の部分（住宅部分全体）",null,null,null,null,null,null,null,null,null,null,null,"(住戸数（",null,null,null,null,null,null,null,"戸））",null,null,null,null,null,"（→申請書第八面作成）"]
[null,null,null,null,"フロア",null,null,null,null,"（",null,null,null,null,null,"）","階",null,null,null,null,null,null,null,null,null,null,null,null,null,"（→申請書第五面作成）"]
[null,null,null,null,"テナント",null,null,null,null,"（",null,null,null,null,null,null,null,null,null,null,null,null,null,"）",null,null,null,null,null,null,"（→申請書第五面作成）"]
[null,null,null,null,"建物用途"]
[null,null,null,null,null,"非住宅用途1",null,null,null,null,null,"事務所等",null,null,null,null,"学校等",null,null,null,null,"工場等"]
[null,null,null,null,null,"非住宅用途2",null,null,null,null,null,"ホテル等",null,null,null,null,"病院等",null,null,null,null,"百貨店等",null,null,null,null,"飲食店等",null,null,null,null,"集会所等"]
[null,null,null,null,null,null,null,null,null,null,null,null,null,null,null,null,null,null,null,null,null,null,null,null,null,null,null,null,null,null,"（→申請書第五面作成）"]
[null,null,null,null,"その他部分",null,null,null,null,"（",null,null,null,null,null,null,null,null,null,null,null,null,null,"）",null,null,null,"（→申請書第四面又は第五面作成）"]
[]
[]
[null,"【10.申請対象部分の改修の竣工時期】",null,null,null,null,null,null,null,null,null,null,null,null,null,null,null,null,null,null,null,null,null,null,null,null,null,null,null,null,null,null,null,null,null,null,null,null,null,"←改修・増築等の場合は、必ず『年月日』を記載してください"]
[null,"【11.備考】"]
[]
[]
[null,"（注意）"]
[null,"1.　①　この様式で用いる用語は、別に定める場合を除き、建築物エネルギー消費性能基準等を定める省令"]
[null,null,"（平成28年経済産業省令・国土交通省令第1号）で定める用語の定義に準じます。（各面共通）"]
[null,"　　②　この様式で用いる用語の意義は、次のとおりです。"]
[null,null,null,"(1)","一戸建ての住宅　建築基準法施行規則（昭和２５年建設省令第40号）別紙の表の用途の区分における「一戸建ての住宅」"]
[null,null,null,"(2)","共同住宅等の住棟　住宅のみの建築物全体(一戸建ての住宅を除く）"]
[null,null,null,"(3)","複合建築物　住宅及び非住宅で構成された建築物（店舗等併用住宅を含む）。評価対象単位は「建物」という。"]
[null,null,null,"(4)","建築物全体（非住宅建築物の全体・複合建築物の全体）　非住宅の建築物全体及び複合建築物全体。評価対象単位は「建物」という。"]
[null,null,null,"(5)","住戸　「共同住宅等（下宿、寄宿舎を除く）における単位住戸」、「複合建築物における単位住戸」及び「店舗等併用住宅における単位住戸」"]
[null,null,null,"(6)","店舗等併用住宅　建築基準法施行規則（昭和25年建設省令第 40 号）別紙の表の用途の区分における "]
[null,null,null,null,"「住宅で事務所、店舗その他これらに類する用途を兼ねるもの」"]
[null,null,null,"(7)","フロア　非住宅の任意の階"]
[null,null,null,"(8)","テナント　任意の店舗部分"]
[null,null,null,"(9)","建物用途　非住宅のみの建築物全体及び複合建築物の非住宅部分全体のうち単一の用途（※）の部分"]
[null,null,null,null,"※基準省令第10条第1項第1号ｲに定める各用途をいう。"]
[null,null,null,"(10)","その他部分　「複合建築物の住宅部分全体（複合建築物（店舗等併用住宅を含む。）で単位住戸が一つの場合を除く。）」、"]
[null,null,null,null,"「複合建築物の非住宅部分全体」及びその他の評価対象単位に該当しない任意の部分"]
[null,"2.【4.建築物の名称】　建築物の部分で申請する場合を除き、評価書に表示される名称となります。"]
[null,"3.【8.建築物の新築竣工時期（計画中の場合は予定時期）】　暦は西暦とし年月日を記載してください。"]
[null,"　　改修する場合も記載が必要です。なお、日付は上旬、中旬、下旬とすることも可能です。"]
[null,"4.【9.申請の対象とする範囲】　申請範囲により、該当するチェックボックス全てに「✓」マークを入れてください。"]
[null,"　　チェックに応じた枚数の評価書が交付されます。また、評価書が複数交付される場合、"]
[null,"　　第四面から第六面を申請単位ごとに作成してください。"]
[null,"5.【9.申請の対象とする範囲】　「フロア」　「テナント」　「その他部分」　の括弧については、それぞれが"]
[null,"　　申請の単位において二以上である場合等により記入できない場合は、行を追加する等による記載を可能とします。"]
[null,"6.【10.申請対象部分の改修の竣工時期】　申請対象部分を改修する場合に記載してください。"]
[null,"7.【10.申請対象部分の改修の竣工時期】　西暦で年月日を記載してください。"]
[null,"8.【１１．備考】必要に応じて、プレート等の交付についての依頼の有無を記載できます。"]

{"sheet":"4面（建築物全体用）","index":5,"n_rows":123,"n_cols":37,"rows_kept":123,"cut":false,"hidden":false,"merged":[[23,17,23,35],[39,20,39,24],[77,2,77,35],[1,0,1,37],[7,2,7,36],[10,2,10,13],[10,26,10,30],[15,17,15,26],[19,17,19,35]]}
[]
["(第四面)"]
[]
[null,"申請対象に関する事項（建築物）"]
[]
[null,"【1.申請対象となる建築物の用途】\n\n"]
[null,null,"（建築基準法施行規則（昭和25年建設省令第40号）別紙の表の用途の区分）"]
[]
[]
[null,"【2.申請対象となる建築物の計算対象面積】"]
[null,null,null,null,null,null,null,null,null,null,null,null,null,null,"㎡",null,"（内、非住宅部分の面積",null,null,null,null,null,null,null,null,null,null,null,null,null,null,null,"㎡）"]
[]
[null,"【3.評価手法（一次エネルギー消費量の計算に用いた方法）】"]
[null,null,"非住宅："]
[]
[null,null,null,null,null,null,null,null,null,null,null,null,null,null,null,null,"（",null,null,null,null,null,null,null,null,null,null,"）"]
[null,null,"住宅："]
[]
[null,null,null,null,null,null,null,"　誘導仕様基準"]
[null,null,null,null,null,null,null,null,null,null,null,null,null,null,null,null,"（",null,null,null,null,null,null,null,null,null,null,null,null,null,null,null,null,null,null,null,"）"]
[null,null,"共同住宅等：",null,null,null,null,"　性能基準　（※共用部分の評価",null,null,null,null,null,null,null,null,null,null,null,"　対象",null,null,null,null,"　除外　）"]
[null,null,null,null,null,null,null,"　仕様基準"]
[null,null,null,null,null,null,null,"　誘導仕様基準"]
[null,null,null,null,null,null,null,"　国土交通大臣が認める方法",null,null,null,null,null,null,null,null,"（",null,null,null,null,null,null,null,null,null,null,null,null,null,null,null,null,null,null,null,"）"]
[null,null,null,null,null,null,"※共用部分が存する場合は、選択してください。"]
[]
[null,"【4.外皮性能に関する表示】"]
[null,null,"非住宅："]
[null,null,null,null,null,null,null,"・ＢＰＩの値の記載　",null,null,null,null,null,null,"（",null,null,null,null,null,null,null,null,null,null,"）"]
[null,null,"住宅：",null,null,null,null,null,null,null,null,null,null,null,null,null,null,null,null,"（仕様基準の場合は「適合」のみ、以下の□チェックは不要）"]
[null,null,null,null,null,null,null,"・ＵＡの値の記載",null,null,null,null,null,null,"（","※",null,null,null,null,null,"※",null,null,null,null,null,"）"]
[null,null,null,null,null,null,null,"・ηＡＣの値の記載",null,null,null,null,null,null,"（","※",null,null,null,null,null,"※",null,null,null,null,null,"）"]
[null,null,"共同住宅等：",null,null,null,null,null,"　適合",null,null,"（",null,"　住戸評価",null,null,null,null,null,"　住棟評価）",null,null,null,null,null,"　－（対象外）"]
[null,null,null,null,null,null,null,null,"（仕様基準の場合は「適合」のみ、以下の□チェックは不要）"]
[null,null,null,null,null,null,null,"・ＵＡの値の記載　",null,null,null,null,null,null," （※",null,null,"　希望する",null,null,null,"※",null,"　希望しない）"]
[null,null,null,null,null,null,null,"・ηＡＣの値の記載",null,null,null,null,null,null," （※",null,null,"　希望する",null,null,null,"※",null,"　希望しない）"]
[null,null,null,null,"※記載を希望する場合は、評価書にＵＡ･ηＡＣいずれかを記載します。また、基準値がない場合には記載ができません。　"]
[]
[null,"【5.改修前のBEIの値】"]
[null,null,null,null,null,null,null,null,null,null,null,null,null,null,null,null,"（改修前：",null,null,null,null,null,null,null,null,"）"]
[]
[null,"【6.「ZEBマーク」に関する表示】"]
[null,null,null,null,null,null,null,null,null,"『ZEB』",null,null,null,null,null,"Nearly　ZEB",null,null,null,null,null,null,"ZEB　Ready",null,null,null,null,null,null,null,"ZEB　Oriented"]
[]
[null,"【7.｢ＺＥＨマーク｣、｢ゼロエネ相当｣等に関する表示】申請書選択肢は評価書の表示項目。カッコ書きは表示マーク。"]
[null,null,"【共通】"]
[null,null,null,"記載しない"]
[null,null,"【住宅】"]
[null,null,null,"『ＺＥＨ』　（ZEHマーク+「ゼロエネ相当」）　",null,null,null,null,null,null,null,null,null,null,null,null,null,null,null,"Ｎｅａｒｌｙ ＺＥＨ （ZEHマーク）"]
[null,null,null,"ＺＥＨ Oriented （ZEHマーク）",null,null,null,null,null,null,null,null,null,null,null,null,null,null,null,"ゼロエネ相当"]
[null,null,"【住棟】"]
[null,null,null,"『ＺＥＨ－M』　（ZEH-Mマーク）　",null,null,null,null,null,null,null,null,null,null,null,null,null,null,"Ｎｅａｒｌｙ ＺＥＨ－M（ZEH-Mマーク）"]
[null,null,null,"ＺＥＨ－M　Ready （ZEH-Mマーク）",null,null,null,null,null,null,null,null,null,null,null,null,null,null,"ＺＥＨ－M Oriented （ZEH-Mマーク）"]
[]
[null,"【8.参考情報】"]
[null,null,"二次エネルギー消費量等に関する項目以外の情報 (注意11）",null,null,null,null,null,null,null,null,null,null,null,null,null,null,null,null,null,null,null,"別紙による",null,null,null,null,"記載しない"]
[]
[null,"【9.一戸建ての住宅でZEH Orientedの場合に申告する事項】"]
[null,null,null,"ＺＥH Orientedの要件　(注意12）　に適合する"]
[]
[null,"【10.ZEB Oriented の場合に申告する事項】"]
[null,null,null,"ZEB Oriented の要件(注意13）に適合する"]
[]
[null,null,"導入する未評価技術の申告(※）　(1以上を選択）"]
[null,null,null,"CO2濃度による外気量制御",null,null,null,null,null,null,null,null,null,null,null,null,null,null,null,null,"自然換気システム"]
[null,null,null,"空調ポンプ制御の高度化（VWV、適正容量分割、末端差圧制御、送水圧力設定制御等）"]
[null,null,null,"空調ファン制御の高度化（VAV、適正容量分割等）"]
[null,null,null,"冷却塔ファン・インバータ制御",null,null,null,null,null,null,null,null,null,null,null,null,null,null,null,null,"照明のゾーニング制御"]
[null,null,null,"フリークーリングシステム",null,null,null,null,null,null,null,null,null,null,null,null,null,null,null,null,"デシカント空調システム"]
[null,null,null,"クール・ヒートトレンチシステム",null,null,null,null,null,null,null,null,null,null,null,null,null,null,null,null,"ハイブリッド給湯システム等"]
[null,null,null,"地中熱利用の高度化（給湯ヒートポンプ、オープンループ方式、地中熱直接利用等）"]
[null,null,null,"コージェネレーション設備の高度化（吸収式冷凍機への蒸気利用、燃料電池、エネルギー"]
[null,null,null,"の面的利用等）"]
[null,null,null,"自然採光システム",null,null,null,null,null,null,null,null,null,null,null,null,null,null,null,null,"超高効率変圧器"]
[null,null,null,"熱回収ヒートポンプ"]
[]
[null,"【11.備考】"]
[]
[]
[null,"（注意）"]
[null,null,"1.　【1.申請対象となる建築物の用途】　用途が複数の場合は、主要用途をできるだけ具体的に記載してください。"]
[null,null,"2.　【2.申請対象となる建築物の計算対象面積】　複合建築物の場合、非住宅部分の面積が分かるように記載してください。"]
[null,null,"3.　【３．評価手法（一次エネルギー消費量の計算に用いた方法）】共同住宅等 性能基準の共用部分の評価方法の有無"]
[null,null,null,"は、共用部分が存する場合は、選択してください。また、非住宅の評価手法にBEST省エネ基準対応ツールを用いる場合は、"]
[null,null,null,"国土交通大臣が認める方法にチェックの上、（）内にBEST省エネ基準対応ツール と記載してください。"]
[null,null,"4.　【4.外皮性能に関する表示】外皮基準適合の場合のみ「ＢＰＩ、ＵＡ又はηＡＣの値の記載」について"]
[null,null,null,"「希望する」を選択できます。この場合は、評価書に数値が記載されます。"]
[null,null,null,"また、「希望しない」を選択した場合は「適合」又は「-」が記載されます。"]
[null,null,"5.　【4.外皮性能に関する表示】　共同住宅等の建築物全体として申請する場合、ＵＡ及びηＡＣの値は"]
[null,null,null,"全住戸の平均値が評価書に記載されます。"]
[null,null,"6.　【5.改修前のBEIの値】　実績値の評価はできません。"]
[null,null,"7.　【6.「ZEBマーク」に関する表示】　非住宅のみの建築物全体の申請の場合に記載してください。"]
[null,null,"8.　【7.｢ZEHマーク｣、「ゼロエネ相当」等に関する表示】　住宅のみの申請の場合に記載してください。"]
[null,null,"9.　【7.｢ZEHマーク｣、｢ゼロエネ相当｣等に関する表示】　いずれかの表示を選択した場合、8地域を除き"]
[null,null,null,"【4.外皮性能に関する表示】におけるＵＡの値の記載（適合が前提）は必須です。"]
[null,null,"10. 【７．｢ZEHマーク｣、｢ゼロエネ相当｣等に関する表示】【住棟】においていずれかの表示を選択する場合"]
[null,null,null,"は、【3.評価手法（一次エネルギー消費量の計算に用いた方法）】共同住宅等において、性能基準を選択"]
[null,null,null,"した上で、共用部分が有る場合は共用部分を評価対象としている必要があります。"]
[null,null,"11.　【8.参考情報】評価書の参考情報に記載を希望する、その他省エネルギー性能関連情報や災害対策関連情報及び"]
[null,null,null,"建築物の販売又は賃貸に関して参考となる情報について記載を希望する場合は、「別紙による」をチェックの上、"]
[null,null,null,"掲載する情報を記載した別紙を提出してください。"]
[null,null,"12.【9.一戸建ての住宅でZEH Orientedの場合に申告する事項】"]
[null,null,null,"都市部狭小地（※1）及び多雪地域（※2）に該当する場合で、外皮基準及び一次エネルギー消費量水準に"]
[null,null,null,"適合する場合に申告してください。"]
[null,null,null,"(※1)「北側斜線の対象となる用途地域（第一種及び第二種低層住居専用地域並びに第一種及び第二種中高層住居専用地域）」"]
[null,null,null,"又は「高度地区において高度斜線が設定されている地域」等であって、敷地面積が85㎡未満で、かつ平屋建て以外の住宅。"]
[null,null,null,"(※2)建築基準法で規定する垂直積雪量が100cm以上に該当する地域。"]
[null,null,"13. 【１０．ＺＥＢ　Ｏｒｉｅｎｔｅｄの場合に申告する事項】　｢建築物全体（非住宅部分）の延べ面積が10,000㎡以上であること｣かつ"]
[null,null,null,"｢未評価技術（公益社団法人空気調和・衛生工学会において省エネルギー効果が高いと見込まれ、公表されたものが対象）を導入すること」"]
[null,null,null,"の要件を満たし、一次エネルギー消費量水準に適合する場合に申告してください。"]
[]
[]
[null,null,null,"■参考情報の二次エネルギー消費量に関する項目について"]
[null,null,null,null,"申請対象に住宅部分（共用部分を除く）が含まれ、かつ、WEBプログラム（※）Ver.2.4.2以降の計算結果を提出する場合、"]
[null,null,null,null,"評価書の「参考情報」欄に以下の二次エネルギー消費量に関する情報が表示されます。"]
[null,null,null,null,"【二次エネルギー消費量に関する項目】"]
[null,null,null,null,"(1)設計二次エネルギー消費量"]
[null,null,null,null,null,"・太陽光発電による削減量（ｋWh/年）",null,null,null,null,null,null,null,null,null,null,null,null,"・コージェネレーションによる削減量（ｋWh/年）"]
[null,null,null,null,null,"・電力（買電量）（ｋWh/年）",null,null,null,null,null,null,null,null,null,"・ガス（MJ/年）",null,null,null,null,null,null,"・灯油（MJ/年）"]
[null,null,null,null,"(2)基準二次エネルギー消費量"]
[null,null,null,null,null,"・電力（ｋWh/年）",null,null,null,null,null,null,null,null,null,"・ガス（MJ/年）",null,null,null,null,null,null,"・灯油（MJ/年）"]
[null,null,null,null,"※WEBプログラムとは、国土技術政策総合研究所及び国立研究開発法人建築研究所が公開している"]
[null,null,null,null,"　　「エネルギー消費性能計算プログラム（住宅版）」をいいます。"]

{"sheet":"5面 (非住宅部分用)","index":6,"n_rows":72,"n_cols":32,"rows_kept":72,"cut":false,"hidden":false,"merged":[[28,20,28,24],[54,1,54,36],[56,0,56,33],[1,0,1,37],[6,2,6,33],[10,2,10,36],[13,2,13,9],[16,2,16,9],[21,13,21,22]]}
[]
["(第五面)"]
[]
[null,"申請対象に関する事項（非住宅の部分）"]
[]
[null,"【1.申請対象となる非住宅の部分の名称】"]
[]
[]
[null,"【2.申請対象となる非住宅の部分の用途】"]
[null,null,"建築基準法施行規則（昭和25年建設省令第40号）別紙の表の用途の区分"]
[]
[]
[null,"【3.申請対象となる非住宅の部分の存する階】"]
[null,null,null,null,null,null,null,null,null,null,"階"]
[]
[null,"【4.申請対象となる非住宅の部分の計算対象面積】"]
[null,null,null,null,null,null,null,null,null,null,"m2"]
[]
[null,"【5.評価手法（一次エネルギー消費量の計算に用いた方法）】"]
[]
[]
[null,null,null,null,null,null,null,null,null,null,null,null,"（",null,null,null,null,null,null,null,null,null,null,"）"]
[]
[null,"【6.外皮性能に関する表示】"]
[null,null,"非住宅："]
[null,null,null,null,null,null,null,"・ＢＰＩの値の記載　",null,null,null,null,null,null,"（",null,null,null,null,null,null,null,null,null,null,"）"]
[]
[null,"【7.改修前のBEIの値】"]
[null,null,null,null,null,null,null,null,null,null,null,null,null,null,null,null,"（改修前：",null,null,null,null,null,null,null,null,"）"]
[]
[null,"【8.「ZEBマーク」に関する表示】"]
[null,null,null,"記載しない",null,null,null,null,null,null,"『ZEB』",null,null,null,null,null,"Nearly　ZEB",null,null,null,null,null,null,"ZEB　Ready",null,null,null,null,null,null,null,"ZEB Oriented"]
[null,null,"※第三面【9.申請の対象とする範囲】が、「建物用途」の場合のみ選択　"]
[]
[null,"【9.参考情報】",null,null,null,null,null,"二次エネルギー消費量等に関する項目以外の情報(注意8）"]
[null,null,null,"記載しない",null,null,null,null,null,null,"別紙による",null,null,null,null,null,null,null,"第四面の参考情報と同じ内容とする"]
[]
[null,"【10.ＺＥＢ　Ｏｒｉｅｎｔｅｄの場合に申告する事項】"]
[null,null,null,"ＺＥＢ　Ｏｒｉｅｎｔｅｄの要件（注意9）に適合する"]
[]
[null,null,"導入する未評価技術の申告（※）（１以上を選択）"]
[null,null,null,"CO２濃度による外気量制御",null,null,null,null,null,null,null,null,null,null,null,null,null,null,null,"自然換気システム"]
[null,null,null,"空調ポンプ制御の高度化（VWV、適正容量分割、末端差圧制御、送水圧力設定制御等）"]
[null,null,null,"空調ファン制御の高度化（VAV、適正容量分割等）"]
[null,null,null,"冷却塔ファン・インバータ制御",null,null,null,null,null,null,null,null,null,null,null,null,null,null,null,"照明のゾーニング制御"]
[null,null,null,"フリークーリングシステム",null,null,null,null,null,null,null,null,null,null,null,null,null,null,null,"デシカント空調システム"]
[null,null,null,"クール・ヒートトレンチシステム",null,null,null,null,null,null,null,null,null,null,null,null,null,null,null,"ハイブリッド給湯システム等"]
[null,null,null,"地中熱利用の高度化（給湯ヒートポンプ、オープンループ方式、地中熱直接利用等）"]
[null,null,null,"コージェネレーション設備の高度化（吸収式冷凍機への蒸気利用、燃料電池、エネルギー"]
[null,null,null,"の面的利用等）"]
[null,null,null,"自然採光システム",null,null,null,null,null,null,null,null,null,null,null,null,null,null,null,null,"超高効率変圧器"]
[null,null,null,"熱回収ヒートポンプ"]
[]
[null,"【11.備考】"]
[]
[]
["（注意）"]
[null,"1.　この面は、非住宅の部分を申請する場合に作成してください。"]
[null,"2.　【1.申請対象となる非住宅の部分の名称】　評価書に表示される名称です。"]
[null,null,"建築物の部分の評価である旨が分かるように記載してください。"]
[null,"3.　【2.申請対象となる非住宅の部分の用途】　申請対象となる非住宅の用途が複数ある場合、主要用途をできるだけ具体的に記載してください。"]
[null,"4．【５．評価手法（一次エネルギー消費量の計算に用いた方法）】BEST省エネ基準対応ツールを用いる場合は、国土交通大臣が認める方法に"]
[null,null,"チェックの上、（）内にBEST省エネ基準対応ツールと記載してください。"]
[null,"5.　【6.外皮性能に関する表示】　外皮基準適合の場合のみ「ＢＰＩの値の記載」について「希望する」を選択できます。"]
[null,null,"この場合は、評価書に数値が記載されます。また、「希望しない」を選択した場合は「適合」又は「-」が記載されます。"]
[null,"6.　【7.改修前のBEIの値】　実績値による評価はできません。"]
[null,"7． 【８.「ZEBマーク」に関する表示】　第三面【9.申請の対象とする範囲】が、「建物用途」の場合は選択してください。"]
[null,"8.　【9.参考情報】　評価書の参考情報に記載を希望する、その他省エネルギー性能関連情報や災害対策関連情報及び建築物の販売又は賃貸"]
[null,null,"に関して参考となる情報がある場合は、「別紙による」をチェックの上、掲載する情報を記載した別紙を提出してください。"]
[null,"9. 【１０．ＺＥＢ　Ｏｒｉｅｎｔｅｄの場合に申告する事項】　「対象範囲の建物用途の延べ面積が10,000㎡以上であること」かつ"]
[null,null,"「対象範囲の建物用途に未評価技術（公益社団法人空気調和・衛生工学会において省エネルギー効果が高いと見込まれ、"]
[null,null,"公表されたものが対象）を導入すること」の要件を満たし、一次エネルギー消費量水準に適合する場合に申告してください。"]

{"sheet":"7面 (複合建築物の部分（非住宅全体))","index":7,"n_rows":74,"n_cols":32,"rows_kept":74,"cut":false,"hidden":false,"merged":[[53,1,53,35],[21,15,21,24],[28,20,28,24],[1,0,1,37],[6,2,6,33],[10,2,10,36],[16,2,16,9],[13,2,13,9]]}
[]
["(第七面)"]
[]
[null,"申請対象に関する事項（複合建築物の部分（非住宅部分全体））"]
[]
[null,"【1.申請対象となる複合建築物の部分（非住宅部分全体）の名称】"]
[]
[]
[null,"【2.申請対象となる複合建築物の部分（非住宅部分全体）の用途】"]
[null,null,"建築基準法施行規則（昭和25年建設省令第40号）別紙の表の用途の区分"]
[]
[]
[null,"【3.申請対象となる複合建築物の部分（非住宅部分全体）の存する階】"]
[null,null,null,null,null,null,null,null,null,null,"階"]
[]
[null,"【4.申請対象となる複合建築物の部分（非住宅部分全体）の計算対象面積】"]
[null,null,null,null,null,null,null,null,null,null,"m2"]
[]
[null,"【5.評価手法（一次エネルギー消費量の計算に用いた方法）】"]
[null,null,null,"通常の計算法（標準入力法・主要室入力法）"]
[null,null,null,"モデル建物法"]
[null,null,null,"国土交通大臣が認める方法",null,null,null,null,null,null,null,null,null,null,"（",null,null,null,null,null,null,null,null,null,null,"）"]
[]
[null,"【6.外皮性能に関する表示】"]
[null,null,"非住宅：",null,null,null,null,null,"適合",null,null,null,"－（不適合及び対象外）"]
[null,null,null,null,null,null,null,"・ＢＰＩの値の記載　",null,null,null,null,null,null,"（",null,"希望する",null,null,null,null,"希望しない",null,null,null,"）"]
[]
[null,"【7.改修前のBEIの値】"]
[null,null,null,"記載なし",null,null,null,null,null,null,"記載する",null,null,null,null,null,"（改修前：",null,null,null,null,null,null,null,null,"）"]
[]
[null,"【8.「ZEBマーク」に関する表示】"]
[null,null,null,"記載しない",null,null,null,null,null,null,"『ZEB』",null,null,null,null,null,"Nearly　ZEB",null,null,null,null,null,null,"ZEB　Ready",null,null,null,null,null,null,null,"ZEB Oriented"]
[]
[null,"【9.参考情報】",null,null,null,null,null,"二次エネルギー消費量等に関する項目以外の情報(注意7）"]
[null,null,null,"記載しない",null,null,null,null,null,null,"別紙による",null,null,null,null,null,null,null,"第四面の参考情報と同じ内容とする"]
[]
[null,"【10.ＺＥＢ　Ｏｒｉｅｎｔｅｄの場合に申告する事項】"]
[null,null,null,"ＺＥＢ　Ｏｒｉｅｎｔｅｄの要件（注意8）に適合する"]
[]
[null,null,"導入する未評価技術の申告（※）（１以上を選択）"]
[null,null,null,"CO２濃度による外気量制御",null,null,null,null,null,null,null,null,null,null,null,null,null,null,null,"自然換気システム"]
[null,null,null,"空調ポンプ制御の高度化（VWV、適正容量分割、末端差圧制御、送水圧力設定制御等）"]
[null,null,null,"空調ファン制御の高度化（VAV、適正容量分割等）"]
[null,null,null,"冷却塔ファン・インバータ制御",null,null,null,null,null,null,null,null,null,null,null,null,null,null,null,"照明のゾーニング制御"]
[null,null,null,"フリークーリングシステム",null,null,null,null,null,null,null,null,null,null,null,null,null,null,null,"デシカント空調システム"]
[null,null,null,"クール・ヒートトレンチシステム",null,null,null,null,null,null,null,null,null,null,null,null,null,null,null,"ハイブリッド給湯システム等"]
[null,null,null,"地中熱利用の高度化（給湯ヒートポンプ、オープンループ方式、地中熱直接利用等）"]
[null,null,null,"コージェネレーション設備の高度化（吸収式冷凍機への蒸気利用、燃料電池、エネルギー"]
[null,null,null,"の面的利用等）"]
[null,null,null,"自然採光システム",null,null,null,null,null,null,null,null,null,null,null,null,null,null,null,null,"超高効率変圧器"]
[null,null,null,"熱回収ヒートポンプ"]
[]
[null,"【11.備考】"]
[]
[]
[]
[]
["（注意）"]
[null,"1.　この面は、複合建築物における非住宅部分全体を申請する場合に作成してください。"]
[null,"2.　【1.申請対象となる複合建築物の部分（非住宅部分全体）の名称】　評価書に表示される名称です。"]
[null,null,"非住宅部分全体の評価である旨が分かるように記載してください。"]
[null,"3.　【2.申請対象となる複合建築物の部分（非住宅部分全体）の用途】　申請対象となる非住宅の用途が"]
[null,null,"複数ある場合、主要用途をできるだけ具体的に記載してください。"]
[null,"4．【５．評価手法（一次エネルギー消費量の計算に用いた方法）】BEST省エネ基準対応ツールを用いる場合は、国土交通大臣が認める方法に"]
[null,null,"チェックの上、（）内にBEST省エネ基準対応ツールと記載してください。"]
[null,"5.　【6.外皮性能に関する表示】　外皮基準適合の場合のみ「ＢＰＩの値の記載」について「希望する」を選択できます。"]
[null,null,"この場合は、評価書に数値が記載されます。また、「希望しない」を選択した場合は「適合」又は「-」が記載されます。"]
[null,"6.　【7.改修前のBEIの値】　実績値による評価はできません。"]
[null,"7.　【9.参考情報】　評価書の参考情報に記載を希望する、その他省エネルギー性能関連情報や災害対策関連情報"]
[null,null,"及び建築物の販売又は賃貸に関して参考となる情報がある場合は、「別紙による」をチェックのうえ、"]
[null,null,"掲載する情報を記載した別紙を提出してください。"]
[null,"8． 【10．ＺＥＢ　Ｏｒｉｅｎｔｅｄの場合に申告する事項】　｢建築物全体（非住宅部分）の延べ面積が10,000㎡以上であること｣"]
[null,null,"かつ｢未評価技術（公益社団法人空気調和・衛生工学会において省エネルギー効果が高いと見込まれ、"]
[null,null,"公表されたものが対象）を導入すること」の要件を満たし、一次エネルギー消費量水準に適合する場合に申告してください。"]

{"sheet":"設内1","index":8,"n_rows":61,"n_cols":41,"rows_kept":61,"cut":false,"hidden":false,"merged":[[28,4,29,7],[45,0,45,12],[46,0,46,12],[47,0,47,12],[47,13,47,32],[40,0,40,12],[40,13,40,17],[41,0,41,12],[42,0,42,12],[43,0,43,12],[44,0,44,12],[39,0,39,12],[39,13,39,17],[9,36,10,39],[10,34,10,35],[2,0,2,39],[6,0,6,13],[6,14,6,39],[7,0,7,13],[7,14,7,39],[10,8,10,9],[10,10,10,33],[11,4,13,7],[13,10,27,11],[9,0,10,3],[9,4,10,7],[9,8,9,35],[11,8,11,9]]}
["（別記参考様式第2号）"]
[]
["（第一面）"]
[]
["設計内容（現況）説明書"]
[]
["建築物の名称",null,null,null,null,null,null,null,null,null,null,null,null,null,{"$f":"IF(質疑等連絡票!H6=\"\",\"質疑等連絡票を記入して下さい\",質疑等連絡票!H6)","v":"質疑等連絡票を記入して下さい"},null,null,null,null,null,null,null,null,null,null,null,null,null,null,null,null,null,null,null,null,null,null,null,null,null,"　←質疑等連絡票とリンク"]
["設計者等氏名",null,null,null,null,null,null,null,null,null,null,null,null,null,{"$f":"IF('2面'!J35=\"\",\"2面を記入して下さい\",'2面'!J35)","v":"2面を記入して下さい"},null,null,null,null,null,null,null,null,null,null,null,null,null,null,null,null,null,null,null,null,null,null,null,null,null,"　←２面とリンク"]
["【基本事項】"]
["確認事項",null,null,null,"確認項目",null,null,null,"設計内容（現況）説明欄",null,null,null,null,null,null,null,null,null,null,null,null,null,null,null,null,null,null,null,null,null,null,null,null,null,null,null,"設計内容\n確認欄"]
[null,null,null,null,null,null,null,null,"項目",null,"設計内容（現況）",null,null,null,null,null,null,null,null,null,null,null,null,null,null,null,null,null,null,null,null,null,null,null,"記載図書"]
["建物の概要",null,null,null,"建築物に関する事項",null,null,null,"用途",null,"・建築物の用途"]
[null,null,null,null,null,null,null,null,null,null,null,"非住宅建築物",null,null,null,null,null,null,"住宅",null,null,null,null,"複合建築物"]
[null,null,null,null,null,null,null,null,null,null,"申請の対象となる用途（該当する全て）",null,"・住宅　または複合建築物の住宅部分"]
[null,null,null,null,null,null,null,null,null,null,null,null,null,"共同住宅等、複合建築物の住戸",null,null,null,null,null,null,null,null,null,null,null,null,null,null,"一戸建ての住宅"]
[null,null,null,null,null,null,null,null,null,null,null,null,"・非住宅　または複合建築物の非住宅部分"]
[null,null,null,null,null,null,null,null,null,null,null,null,null,"カッコ内はモデル建物法による用途"]
[null,null,null,null,null,null,null,null,null,null,null,null,null,"事務所等",null,null,null,"（",null,"事務所モデル",null,null,null,"）"]
[null,null,null,null,null,null,null,null,null,null,null,null,null,"ホテル等",null,null,null,"（",null,"ビジネスホテルモデル",null,null,null,null,null,null,null,"シティホテルモデル",null,null,null,null,null,"）"]
[null,null,null,null,null,null,null,null,null,null,null,null,null,"病院等",null,null,null,"（",null,"総合病院モデル",null,null,null,null,null,null,null,"福祉施設モデル"]
[null,null,null,null,null,null,null,null,null,null,null,null,null,null,null,null,null,null,null,"クリニックモデル",null,null,null,null,"）"]
[null,null,null,null,null,null,null,null,null,null,null,null,null,"百貨店等",null,null,null,"（",null,"大規模物販モデル",null,null,null,null,null,null,null,"小規模物販モデル",null,null,null,null,null,"）"]
[null,null,null,null,null,null,null,null,null,null,null,null,null,"学校等",null,null,null,"（",null,"学校モデル",null,null,null,null,"幼稚園モデル",null,null,null,null,"大学モデル"]
[null,null,null,null,null,null,null,null,null,null,null,null,null,null,null,null,null,null,null,"講堂モデル",null,null,null,"）"]
[null,null,null,null,null,null,null,null,null,null,null,null,null,"飲食店等",null,null,null,"（",null,"飲食店モデル",null,null,null,null,"）"]
[null,null,null,null,null,null,null,null,null,null,null,null,null,"集会所等",null,null,null,"（",null,"集会所モデル",null,null,null,null,"）"]
[null,null,null,null,null,null,null,null,null,null,null,null,null,"工場等",null,null,null,"（",null,"工場モデル",null,null,null,"）"]
[]
[null,null,null,null,"申請の対象となる範囲",null,null,null,null,null,"・申請する評価の範囲（該当する全て）"]
[null,null,null,null,null,null,null,null,null,null,null,"一戸建ての住宅"]
[null,null,null,null,null,null,null,null,null,null,null,"共同住宅等、複合建築物の住戸"]
[null,null,null,null,null,null,null,null,null,null,null,"非住宅建築物全体・複合建築物の非住宅部分全体"]
[null,null,null,null,null,null,null,null,null,null,null,"フロア･テナント"]
[null,null,null,null,null,null,null,null,null,null,null,"建物用途"]
[null,null,null,null,null,null,null,null,null,null,null,"共同住宅等の住棟・複合建築物の住宅部分全体"]
[null,null,null,null,null,null,null,null,null,null,null,"複合建築物全体"]
[null,null,null,null,null,null,null,null,null,null,null,"その他の部分"]
[]
["【参考】申請の対象となる範囲と設計内容説明書の関係"]
["申請の対象となる範囲",null,null,null,null,null,null,null,null,null,null,null,null,"住宅用",null,null,null,null,null,null,"非住宅用",null,null,null,null,"共用部分用",null,null,null,null,"住棟用"]
["（以下代表的な分類）",null,null,null,null,null,null,null,null,null,null,null,null,"【第二面】",null,null,null,null,null,null,"【第三面】",null,null,null,null,"【第四面】",null,null,null,null,"【第五面】"]
["一戸建ての住宅",null,null,null,null,null,null,null,null,null,null,null,null,null,null,"○",null,null,null,null,"－",null,null,null,null,"－",null,null,null,null,"－"]
["共同住宅等、複合建築物の住戸",null,null,null,null,null,null,null,null,null,null,null,null,null,null,"○※1",null,null,null,null,"－",null,null,null,null,"－",null,null,null,null,"－"]
["非住宅建築物全体等",null,null,null,null,null,null,null,null,null,null,null,null,null,null,"－",null,null,null,null,"○",null,null,null,null,"－",null,null,null,null,"－"]
["フロア･テナント・建物用途",null,null,null,null,null,null,null,null,null,null,null,null,null,null,"－",null,null,null,null,"○※2",null,null,null,null,"－",null,null,null,null,"－"]
["共同住宅等の住棟等",null,null,null,null,null,null,null,null,null,null,null,null,null,null,"○※1",null,null,null,null,"－",null,null,null,null,"○",null,null,null,null,"○"]
["複合建築物全体",null,null,null,null,null,null,null,null,null,null,null,null,null,null,"○※1",null,null,null,null,"○",null,null,null,null,"○",null,null,null,null,"○※3"]
["その他の部分",null,null,null,null,null,null,null,null,null,null,null,null,"適宜選択"]
[null,"※1･･･住戸ごとに作成する。ただし別の表を用いることも可能。"]
[null,"※2･･･申請単位ごとに作成。ただし別の表を用いることも可能。"]
[null,"※3･･･住宅仕様基準を含む場合は作成不要。"]
[]
[null,null,"BELSに関して記載する数値は以下のとおりとします。"]
[null,null,"　・ＵＡ　小数第二位未満を切り上げた数値を記載してください。"]
[null,null,"　・ηＡＣ　小数第一位未満を切り上げた数値を記載してください。"]
[null,null,"　・年間熱負荷係数　小数第一位以下を切り上げた数値を記載してください。"]
[null,null,"　・ＢＰＩ　小数第二位未満を切り上げた数値を記載してください。"]
[null,null,"　・ＢＥＩ　小数第二位未満を切り上げた数値を記載してください。"]
[null,null,"　・設計・基準一次エネルギー消費量　小数以下一位未満を切り上げた数値を記載してください。 "]
[null,null,"　・削減率　1未満の端数があるときは、これを切り捨てた数値を記載してください。"]
[null,null,null,"(一次エネルギー消費削減量とは「基準一次ｴﾈﾙｷﾞｰ消費量 － 設計一次ｴﾈﾙｷﾞｰ消費量」をいいます。)"]

{"sheet":"設内3（非住宅用）","index":9,"n_rows":289,"n_cols":40,"rows_kept":289,"cut":false,"hidden":false,"merged":[[275,0,289,1],[275,2,289,4],[275,5,278,10],[279,5,282,10],[288,5,289,10],[273,0,274,1],[273,2,274,4],[273,5,273,36],[273,37,274,40],[274,5,274,10],[274,11,274,32],[274,33,274,36],[246,13,246,17],[250,13,250,17],[251,0,270,1],[251,2,270,4],[251,5,270,10],[256,13,256,17],[260,13,260,17],[263,13,263,17],[267,13,267,17],[270,13,270,17],[209,0,250,1],[209,2,250,4],[225,13,225,17],[229,13,229,17],[232,13,232,17],[235,13,235,17],[238,13,238,17],[242,13,242,17],[258,13,258,17],[207,37,208,40],[208,5,208,10],[208,11,208,32],[208,33,208,36],[211,13,211,17],[214,13,214,17],[217,13,217,17],[221,13,221,17],[200,13,200,17],[204,13,204,17],[207,0,208,1],[207,2,208,4],[207,5,207,36],[171,13,171,17],[175,13,175,17],[179,13,179,17],[183,13,183,17],[186,13,186,17],[189,13,189,17],[142,0,204,1],[142,2,204,4],[144,13,144,17],[147,13,147,17],[150,13,150,17],[154,13,154,17],[158,13,158,17],[162,13,162,17],[165,13,165,17],[168,13,168,17],[140,0,141,1],[140,2,141,4],[140,5,140,36],[140,37,141,40],[141,5,141,10],[141,11,141,32],[141,33,141,36],[192,13,192,17],[196,13,196,17],[73,37,74,40],[74,5,74,10],[74,11,74,32],[74,33,74,36],[75,0,137,1],[75,2,137,4],[77,13,77,17],[80,13,80,17],[83,13,83,17],[87,13,87,17],[112,13,112,17],[116,13,116,17],[119,13,119,17],[122,13,122,17],[125,13,125,17],[129,13,129,17],[91,13,91,17],[95,13,95,17],[98,13,98,17],[101,13,101,17],[104,13,104,17],[108,13,108,17],[133,13,133,17],[137,13,137,17],[62,13,62,17],[65,13,65,17],[68,13,68,17],[70,13,70,17],[73,0,74,1],[73,2,74,4],[73,5,73,36],[44,0,70,1],[44,2,70,4],[44,5,47,10],[47,13,47,17],[49,13,49,17],[52,13,52,17],[55,13,55,17],[57,13,57,17],[58,5,59,10],[60,13,60,17],[33,14,33,18],[35,14,35,18],[36,19,36,23],[37,0,43,1],[37,2,43,4],[42,5,43,10],[21,0,22,1],[21,18,21,22],[23,0,30,1],[25,14,25,18],[27,14,27,18],[28,16,28,20],[30,16,30,20],[19,0,20,1],[19,2,20,4],[19,5,19,36],[19,37,20,40],[20,5,20,10],[20,11,20,32],[20,33,20,36],[11,0,16,1],[11,6,12,10],[12,15,12,18],[13,15,13,18],[14,16,14,19],[16,16,16,19],[1,0,1,40],[5,0,5,15],[5,16,5,40],[9,0,10,1],[9,2,10,5],[9,6,9,36],[9,37,10,40],[10,6,10,10],[10,11,10,32],[10,33,10,36]]}
[]
["（第三面）【非住宅用】"]
[]
["非住宅建築物又は複合建築物の非住宅部分"]
["（",null,"全体",null,null,null,null,null,"フロア",null,null,null,"（",null,"別表に記載）",null,null,null,"）",null,null,"テナント",null,null,null,null,"建物用途",null,null,null,"（",null,"別表に記載）",null,null,null,"）"]
["申請の部分※"]
[null,"※フロア・テナント・建物用途を複数申請する場合以外は記入不要"]
[]
["【外皮に関する事項】"]
["確認事項",null,"確認項目",null,null,null,"設計内容（現況）説明欄",null,null,null,null,null,null,null,null,null,null,null,null,null,null,null,null,null,null,null,null,null,null,null,null,null,null,null,null,null,null,"設計内容\n確認欄"]
[null,null,null,null,null,null,"項目",null,null,null,null,"設計内容（現況）",null,null,null,null,null,null,null,null,null,null,null,null,null,null,null,null,null,null,null,null,null,"記載図書欄"]
["躯体の外皮性能等",null,null,null,null,null,"外皮計算結果等",null,null,null,null,null,"年間熱負荷係数",null,null,null,null,null,null,null,null,null,null,null,null,null,null,null,null,null,null,null,null,null,"計算書"]
[null,null,null,null,null,null,null,null,null,null,null,null,"設計値　（",null,null,null,null,null,null,"）ＭＪ/（m2・年）",null,null,null,null,null,null,null,null,null,null,null,null,null,null,"仕様書"]
[null,null,null,null,null,null,null,null,null,null,null,null,"基準値　（",null,null,null,null,null,null,"）ＭＪ/（m2・年）",null,null,null,null,null,null,null,null,null,null,null,null,null,null,"平面図",null,null,null,null,"適"]
[null,null,null,null,null,null,null,null,null,null,null,null,"・ＢＰＩ",null,null,"（",null,null,null,null,"）",null,null,null,null,null,null,null,null,null,null,null,null,null,"立面図"]
[null,null,null,null,null,null,null,null,null,null,null,null,"モデル建物法",null,null,null,null,null,null,null,null,null,null,null,null,null,null,null,null,null,null,null,null,null,"建具表"]
[null,null,null,null,null,null,null,null,null,null,null,null,"・BPIｍ",null,null,"（",null,null,null,null,"）"]
[]
["【一次エネルギー消費量等に関する事項】"]
["確認事項",null,"確認\n項目",null,null,"設計内容（現況）説明欄",null,null,null,null,null,null,null,null,null,null,null,null,null,null,null,null,null,null,null,null,null,null,null,null,null,null,null,null,null,null,null,"設計内容\n確認欄"]
[null,null,null,null,null,"項目",null,null,null,null,null,"設計内容（現況）",null,null,null,null,null,null,null,null,null,null,null,null,null,null,null,null,null,null,null,null,null,"記載図書欄"]
["基本事項",null,null,null,null,"計算対象床面積",null,null,null,null,null,"計算対象床面積",null,null,null,null,null,"（",null,null,null,null,null,"）","㎡",null,null,null,null,null,null,null,null,null,"平面図"]
[null,null,null,null,null,null,null,null,null,null,null,null,null,null,null,null,null,null,null,null,null,null,null,null,null,null,null,null,null,null,null,null,null,null,"求積図"]
["一次エネルギー消費量",null,null,null,null,"計算結果等",null,null,null,null,null,null,"通常の計算法　計算結果の記入　",null,null,null,null,null,null,null,null,null,null,null,null,null,null,null,null,null,null,null,null,null,"計算書"]
[null,null,null,null,null,null,null,null,null,null,null,"・設計一次エネルギー消費量（その他除く）",null,null,null,null,null,null,null,null,null,null,null,null,null,null,null,null,null,null,null,null,null,null,"仕様書",null,null,null,null,"適"]
[null,null,null,null,null,null,null,null,null,null,null,null,null,"（",null,null,null,null,null,"）","GJ／年"]
[null,null,null,null,null,null,null,null,null,null,null,"・基準一次エネルギー消費量（その他除く）"]
[null,null,null,null,null,null,null,null,null,null,null,null,null,"（",null,null,null,null,null,"）","GJ／年",null,null,null,"･･･①"]
[null,null,null,null,null,null,null,null,null,null,null,null,"・ＢＥＩ",null,null,"（",null,null,null,null,null,"）"]
[null,null,null,null,null,null,null,null,null,null,null,null,"モデル建物法"]
[null,null,null,null,null,null,null,null,null,null,null,null,"・BEIｍ",null,null,"（",null,null,null,null,null,"）"]
[null,null,null,null,null,null,null,null,null,null,null,null,"ＢＥＳＴ省エネ基準対応ツール(以下「ＢＥＳＴ」)"]
[null,null,null,null,null,null,null,null,null,null,null,null,"・換算後の設計一次エネルギー消費量（その他除く）"]
[null,null,null,null,null,null,null,null,null,null,null,null,null,"（",null,null,null,null,null,"）","GJ／年"]
[null,null,null,null,null,null,null,null,null,null,null,null,"・基準一次エネルギー消費量（その他除く）"]
[null,null,null,null,null,null,null,null,null,null,null,null,null,"（",null,null,null,null,null,"）","GJ／年",null,null,null,"･･･①"]
[null,null,null,null,null,null,null,null,null,null,null,null,"・換算後のＢＥＩ",null,null,null,null,null,"（",null,null,null,null,null,"）"]
["設備の概要　 ",null,"設備機器に係る概要（BESTを除く）",null,null,"空調設備",null,null,null,null,null,null,"エネルギー消費性能計算プログラムの出力票による",null,null,null,null,null,null,null,null,null,null,null,null,null,null,null,null,null,null,null,null,null,"仕上表"]
[null,null,null,null,null,"換気設備",null,null,null,null,null,null,"エネルギー消費性能計算プログラムの出力票による",null,null,null,null,null,null,null,null,null,null,null,null,null,null,null,null,null,null,null,null,null,"建具表"]
[null,null,null,null,null,"照明設備",null,null,null,null,null,null,"エネルギー消費性能計算プログラムの出力票による",null,null,null,null,null,null,null,null,null,null,null,null,null,null,null,null,null,null,null,null,null,"矩計図"]
[null,null,null,null,null,"給湯設備",null,null,null,null,null,null,"エネルギー消費性能計算プログラムの出力票による",null,null,null,null,null,null,null,null,null,null,null,null,null,null,null,null,null,null,null,null,null,"平面図",null,null,null,null,"適"]
[null,null,null,null,null,"昇降機",null,null,null,null,null,null,"エネルギー消費性能計算プログラムの出力票による",null,null,null,null,null,null,null,null,null,null,null,null,null,null,null,null,null,null,null,null,null,"機器表"]
[null,null,null,null,null,"エネルギー利用効率化設備",null,null,null,null,null,null,"エネルギー消費性能計算プログラムの出力票による",null,null,null,null,null,null,null,null,null,null,null,null,null,null,null,null,null,null,null,null,null,"系統図"]
[null,null,null,null,null,null,null,null,null,null,null,"・太陽光発電利用区分",null,null,null,null,null,null,"全量自己消費",null,null,null,"余剰売電",null,null,"全量売電",null,null,"その他",null,null,null,null,null,"入力ｼｰﾄ"]
["ZEＢに関する事項①",null,"「ZEBマーク」に関する表示\n\n※選択した場合のみ\n\n（ZEB\nOriented\nを選択した場合は②に記載）\n\n",null,null,"再生可能エネルギー除き",null,null,null,null,null,null,"通常の計算方法の場合",null,null,null,null,null,null,null,null,null,null,null,null,null,null,null,null,null,null,null,null,null,"計算書"]
[null,null,null,null,null,null,null,null,null,null,null,null,"ＢＥＳＴの場合（換算後の数値）"]
[null,null,null,null,null,null,null,null,null,null,null,"・再生可能ｴﾈﾙｷﾞｰを除いた設計一次ｴﾈﾙｷﾞｰ消費量（その他除く）"]
[null,null,null,null,null,null,null,null,null,null,null,null,"（",null,null,null,null,null,"）","GJ/年　",null,null,null,"･･･②"]
[null,null,null,null,null,null,null,null,null,null,null,"・再生可能ｴﾈﾙｷﾞｰを除いた一次ｴﾈﾙｷﾞｰ消費削減量（その他除く）",null,null,null,null,null,null,null,null,null,null,null,null,null,null,null,null,null,null,null,null,null,null,null,null,null,null,null,"適"]
[null,null,null,null,null,null,null,null,null,null,null,null,"（",{"$f":"IF(N48=\"\",\"\",$O$28-N48)","v":""},null,null,null,null,"）","GJ/年　",null,null,null,"･･･③=① - ②"]
[null,null,null,null,null,null,null,null,null,null,null,"・再生可能ｴﾈﾙｷﾞｰを除いた設計一次ｴﾈﾙｷﾞｰ消費量（その他除く）"]
[null,null,null,null,null,null,null,null,null,null,null,"の基準一次ｴﾈﾙｷﾞｰ消費量（その他除く）からの削減率"]
[null,null,null,null,null,null,null,null,null,null,null,null,"（",{"$f":"IF(N48=\"\",\"\",ROUNDDOWN(N50/$O$28*100,0))","v":""},null,null,null,null,"）","％削減　",null,null,null,"･･･③/①×100"]
[null,null,null,null,null,null,null,null,null,null,null,null,"モデル建物法の場合"]
[null,null,null,null,null,null,null,null,null,null,null,"・再生可能ｴﾈﾙｷﾞｰを除いたBEIｍ"]
[null,null,null,null,null,null,null,null,null,null,null,null,"（",null,null,null,null,null,"）",null,null,null,null,"･･･❶"]
[null,null,null,null,null,null,null,null,null,null,null,"・再生可能ｴﾈﾙｷﾞｰを除いた削減率"]
[null,null,null,null,null,null,null,null,null,null,null,null,"（",{"$f":"IF(N56=\"\",\"\",(1-N56)*100)","v":""},null,null,null,null,"）","％削減　",null,null,null,"･･･(1 - ❶)×100"]
[null,null,null,null,null,"再生可能エネルギー加え",null,null,null,null,null,null,"通常の計算方法の場合"]
[null,null,null,null,null,null,null,null,null,null,null,"・再生可能ｴﾈﾙｷﾞｰを加えた設計一次ｴﾈﾙｷﾞｰ消費量（その他除く）"]
[null,null,null,null,null,null,null,null,null,null,null,null,"（",null,null,null,null,null,"）","GJ/年　",null,null,null,"･･･④"]
[null,null,null,null,null,null,null,null,null,null,null,"・再生可能ｴﾈﾙｷﾞｰを加えた一次ｴﾈﾙｷﾞｰ消費削減量（その他除く）"]
[null,null,null,null,null,null,null,null,null,null,null,null,"（",{"$f":"IF(N61=\"\",\"\",$O$28-N61)","v":""},null,null,null,null,"）","GJ/年　",null,null,null,"･･･⑤=① - ④"]
[null,null,null,null,null,null,null,null,null,null,null,"・再生可能ｴﾈﾙｷﾞｰを加えた設計一次ｴﾈﾙｷﾞｰ消費量（その他除く）"]
[null,null,null,null,null,null,null,null,null,null,null,"の基準一次ｴﾈﾙｷﾞｰ消費量（その他除く）からの削減率"]
[null,null,null,null,null,null,null,null,null,null,null,null,"（",{"$f":"IF(N61=\"\",\"\",ROUNDDOWN(N63/$O$28*100,0))","v":""},null,null,null,null,"）","％削減　",null,null,null,"･･･⑤/①×100"]
[null,null,null,null,null,null,null,null,null,null,null,null,"モデル建物法の場合"]
[null,null,null,null,null,null,null,null,null,null,null,"・再生可能ｴﾈﾙｷﾞｰを加えたBEIｍ"]
[null,null,null,null,null,null,null,null,null,null,null,null,"（",null,null,null,null,null,"）",null,null,null,null,"･･･❷"]
[null,null,null,null,null,null,null,null,null,null,null,"・再生可能ｴﾈﾙｷﾞｰを加えた削減率"]
[null,null,null,null,null,null,null,null,null,null,null,null,"（",{"$f":"IF(N69=\"\",\"\",(1-N69)*100)","v":""},null,null,null,null,"）","％削減　",null,null,null,"･･･(1 - ❷)×100"]
[]
[]
["確認事項",null,"確認\n項目",null,null,"設計内容（現況）説明欄",null,null,null,null,null,null,null,null,null,null,null,null,null,null,null,null,null,null,null,null,null,null,null,null,null,null,null,null,null,null,null,"設計内容\n確認欄"]
[null,null,null,null,null,"項目",null,null,null,null,null,"設計内容（現況）",null,null,null,null,null,null,null,null,null,null,null,null,null,null,null,null,null,null,null,null,null,"記載図書欄"]
["ZEＢに関する事項②",null,"「ZEBマーク」に関する表示\n\n※ZEB\nOriented\nを選択した場合\n\n※非住宅部分に含まれる全ての用途にチェック\n\n 非住宅\n 用途 1",null,null,null,"事務所等",null,null,null,null,null,"通常計算法又はＢＥＳＴの場合",null,null,null,null,null,null,null,null,null,null,null,null,null,null,null,null,null,null,null,null,null,"計算書"]
[null,null,null,null,null,null,null,null,null,null,null,"・当該用途の基準一次エネルギー消費量（その他除く）"]
[null,null,null,null,null,null,null,null,null,null,null,null,"（",null,null,null,null,null,"）","GJ/年　",null,null,null,"･･･⑥"]
[null,null,null,null,null,null,null,null,null,null,null,"・当該用途における再生可能ｴﾈﾙｷﾞｰを除いた設計一次ｴﾈﾙｷﾞｰ",null,null,null,null,null,null,null,null,null,null,null,null,null,null,null,null,null,null,null,null,null,null,null,null,null,null,null,"適"]
[null,null,null,null,null,null,null,null,null,null,null,"消費量(※）（その他除く）"]
[null,null,null,null,null,null,null,null,null,null,null,null,"（",null,null,null,null,null,"）","GJ/年　",null,null,null,"･･･⑦"]
[null,null,null,null,null,null,null,null,null,null,null,"・当該用途における再生可能ｴﾈﾙｷﾞｰを除いた一次ｴﾈﾙｷﾞｰ"]
[null,null,null,null,null,null,null,null,null,null,null,"消費削減量（その他除く）"]
[null,null,null,null,null,null,null,null,null,null,null,null,"（",{"$f":"IF(N78=\"\",\"\",N78-N81)","v":""},null,null,null,null,"）","GJ/年　",null,null,null,"･･･⑧=⑥ - ⑦"]
[null,null,null,null,null,null,null,null,null,null,null,"・当該用途における再生可能ｴﾈﾙｷﾞｰを除いた設計一次ｴﾈﾙｷﾞｰ"]
[null,null,null,null,null,null,null,null,null,null,null,"消費量(※）（その他除く）の基準一次ｴﾈﾙｷﾞｰ消費量（その他除く）"]
[null,null,null,null,null,null,null,null,null,null,null,"からの削減率"]
[null,null,null,null,null,null,null,null,null,null,null,null,"（",{"$f":"IF(N78=\"\",\"\",ROUNDDOWN(N84/N78*100,0))","v":""},null,null,null,null,"）","％削減　",null,null,null,"･･･⑧/⑥×100（≧40％）"]
[null,null,null,null,null,null,null,null,null,null,null,null,"（※BESTについては換算後の数値）"]
[null,null,null,null,null,null,null,null,null,null,null,null,"モデル建物法の場合"]
[null,null,null,null,null,null,null,null,null,null,null,"・当該用途における再生可能ｴﾈﾙｷﾞｰを除いたBEIｍ"]
[null,null,null,null,null,null,null,null,null,null,null,null,"（",null,null,null,null,null,"）",null,null,null,null,"･･･❸"]
[null,null,null,null,null,null,null,null,null,null,null,"・当該用途における再生可能ｴﾈﾙｷﾞｰを除いた設計一次ｴﾈﾙｷﾞｰ"]
[null,null,null,null,null,null,null,null,null,null,null,"消費量（その他除く）の基準一次ｴﾈﾙｷﾞｰ消費量（その他除く）"]
[null,null,null,null,null,null,null,null,null,null,null,"からの削減率"]
[null,null,null,null,null,null,null,null,null,null,null,null,"（",{"$f":"IF(N92=\"\",\"\",(1-N92)*100)","v":""},null,null,null,null,"）","％削減　",null,null,null,"･･･(1 - ❸)×100（≧40％）"]
[null,null,null,null,null,null,"学校等",null,null,null,null,null,"通常計算法又はＢＥＳＴの場合",null,null,null,null,null,null,null,null,null,null,null,null,null,null,null,null,null,null,null,null,null,"計算書"]
[null,null,null,null,null,null,null,null,null,null,null,"・当該用途の基準一次エネルギー消費量（その他除く）"]
[null,null,null,null,null,null,null,null,null,null,null,null,"（",null,null,null,null,null,"）","GJ/年　",null,null,null,"･･･⑥"]
[null,null,null,null,null,null,null,null,null,null,null,"・当該用途における再生可能ｴﾈﾙｷﾞｰを除いた設計一次ｴﾈﾙｷﾞｰ",null,null,null,null,null,null,null,null,null,null,null,null,null,null,null,null,null,null,null,null,null,null,null,null,null,null,null,"適"]
[null,null,null,null,null,null,null,null,null,null,null,"消費量(※）（その他除く）"]
[null,null,null,null,null,null,null,null,null,null,null,null,"（",null,null,null,null,null,"）","GJ/年　",null,null,null,"･･･⑦"]
[null,null,null,null,null,null,null,null,null,null,null,"・当該用途における再生可能ｴﾈﾙｷﾞｰを除いた一次ｴﾈﾙｷﾞｰ"]
[null,null,null,null,null,null,null,null,null,null,null,"消費削減量（その他除く）"]
[null,null,null,null,null,null,null,null,null,null,null,null,"（",{"$f":"IF(N99=\"\",\"\",N99-N102)","v":""},null,null,null,null,"）","GJ/年　",null,null,null,"･･･⑧=⑥ - ⑦"]
[null,null,null,null,null,null,null,null,null,null,null,"・当該用途における再生可能ｴﾈﾙｷﾞｰを除いた設計一次ｴﾈﾙｷﾞｰ"]
[null,null,null,null,null,null,null,null,null,null,null,"消費量(※）（その他除く）の基準一次ｴﾈﾙｷﾞｰ消費量（その他除く）"]
[null,null,null,null,null,null,null,null,null,null,null,"からの削減率"]
[null,null,null,null,null,null,null,null,null,null,null,null,"（",{"$f":"IF(N99=\"\",\"\",ROUNDDOWN(N105/N99*100,0))","v":""},null,null,null,null,"）","％削減　",null,null,null,"･･･⑧/⑥×100（≧40％）"]
[null,null,null,null,null,null,null,null,null,null,null,null,"（※BESTについては換算後の数値）"]
[null,null,null,null,null,null,null,null,null,null,null,null,"モデル建物法の場合"]
[null,null,null,null,null,null,null,null,null,null,null,"・当該用途における再生可能ｴﾈﾙｷﾞｰを除いたBEIｍ"]
[null,null,null,null,null,null,null,null,null,null,null,null,"（",null,null,null,null,null,"）",null,null,null,null,"･･･❸"]
[null,null,null,null,null,null,null,null,null,null,null,"・当該用途における再生可能ｴﾈﾙｷﾞｰを除いた設計一次ｴﾈﾙｷﾞｰ"]
[null,null,null,null,null,null,null,null,null,null,null,"消費量（その他除く）の基準一次ｴﾈﾙｷﾞｰ消費量（その他除く）"]
[null,null,null,null,null,null,null,null,null,null,null,"からの削減率"]
[null,null,null,null,null,null,null,null,null,null,null,null,"（",{"$f":"IF(N113=\"\",\"\",(1-N113)*100)","v":""},null,null,null,null,"）","％削減　",null,null,null,"･･･(1 - ❸)×100（≧40％）"]
[null,null,null,null,null,null,"工場等",null,null,null,null,null,"通常計算法又はＢＥＳＴの場合",null,null,null,null,null,null,null,null,null,null,null,null,null,null,null,null,null,null,null,null,null,"計算書"]
[null,null,null,null,null,null,null,null,null,null,null,"・当該用途の基準一次エネルギー消費量（その他除く）"]
[null,null,null,null,null,null,null,null,null,null,null,null,"（",null,null,null,null,null,"）","GJ/年　",null,null,null,"･･･⑥"]
[null,null,null,null,null,null,null,null,null,null,null,"・当該用途における再生可能ｴﾈﾙｷﾞｰを除いた設計一次ｴﾈﾙｷﾞｰ",null,null,null,null,null,null,null,null,null,null,null,null,null,null,null,null,null,null,null,null,null,null,null,null,null,null,null,"適"]
[null,null,null,null,null,null,null,null,null,null,null,"消費量(※）（その他除く）"]
[null,null,null,null,null,null,null,null,null,null,null,null,"（",null,null,null,null,null,"）","GJ/年　",null,null,null,"･･･⑦"]
[null,null,null,null,null,null,null,null,null,null,null,"・当該用途における再生可能ｴﾈﾙｷﾞｰを除いた一次ｴﾈﾙｷﾞｰ"]
[null,null,null,null,null,null,null,null,null,null,null,"消費削減量（その他除く）"]
[null,null,null,null,null,null,null,null,null,null,null,null,"（",{"$f":"IF(N120=\"\",\"\",N120-N123)","v":""},null,null,null,null,"）","GJ/年　",null,null,null,"･･･⑧=⑥ - ⑦"]
[null,null,null,null,null,null,null,null,null,null,null,"・当該用途における再生可能ｴﾈﾙｷﾞｰを除いた設計一次ｴﾈﾙｷﾞｰ"]
[null,null,null,null,null,null,null,null,null,null,null,"消費量(※）（その他除く）の基準一次ｴﾈﾙｷﾞｰ消費量（その他除く）"]
[null,null,null,null,null,null,null,null,null,null,null,"からの削減率"]
[null,null,null,null,null,null,null,null,null,null,null,null,"（",{"$f":"IF(N120=\"\",\"\",ROUNDDOWN(N126/N120*100,0))","v":""},null,null,null,null,"）","％削減　",null,null,null,"･･･⑧/⑥×100（≧40％）"]
[null,null,null,null,null,null,null,null,null,null,null,null,"（※BESTについては換算後の数値）"]
[null,null,null,null,null,null,null,null,null,null,null,null,"モデル建物法の場合"]
[null,null,null,null,null,null,null,null,null,null,null,"・当該用途における再生可能ｴﾈﾙｷﾞｰを除いたBEIｍ"]
[null,null,null,null,null,null,null,null,null,null,null,null,"（",null,null,null,null,null,"）",null,null,null,null,"･･･❸"]
[null,null,null,null,null,null,null,null,null,null,null,"・当該用途における再生可能ｴﾈﾙｷﾞｰを除いた設計一次ｴﾈﾙｷﾞｰ"]
[null,null,null,null,null,null,null,null,null,null,null,"消費量（その他除く）の基準一次ｴﾈﾙｷﾞｰ消費量（その他除く）"]
[null,null,null,null,null,null,null,null,null,null,null,"からの削減率"]
[null,null,null,null,null,null,null,null,null,null,null,null,"（",{"$f":"IF(N134=\"\",\"\",(1-N134)*100)","v":""},null,null,null,null,"）","％削減　",null,null,null,"･･･(1 - ❸)×100（≧40％）"]
[]
[]
["確認事項",null,"確認\n項目",null,null,"設計内容（現況）説明欄",null,null,null,null,null,null,null,null,null,null,null,null,null,null,null,null,null,null,null,null,null,null,null,null,null,null,null,null,null,null,null,"設計内容\n確認欄"]
[null,null,null,null,null,"項目",null,null,null,null,null,"設計内容（現況）",null,null,null,null,null,null,null,null,null,null,null,null,null,null,null,null,null,null,null,null,null,"記載図書欄"]
["ZEＢに関する事項②",null,"「ZEBマーク」に関する表示\n\n※ZEB\nOriented\nを選択した場合\n\n※非住宅部分に含まれる全ての用途にチェック\n\n 非住宅\n 用途 2",null,null,null,"ホテル等",null,null,null,null,null,"通常計算法又はＢＥＳＴの場合",null,null,null,null,null,null,null,null,null,null,null,null,null,null,null,null,null,null,null,null,null,"計算書"]
[null,null,null,null,null,null,null,null,null,null,null,"・当該用途の基準一次エネルギー消費量（その他除く）"]
[null,null,null,null,null,null,null,null,null,null,null,null,"（",null,null,null,null,null,"）","GJ/年　",null,null,null,"･･･⑥"]
[null,null,null,null,null,null,null,null,null,null,null,"・当該用途における再生可能ｴﾈﾙｷﾞｰを除いた設計一次ｴﾈﾙｷﾞｰ",null,null,null,null,null,null,null,null,null,null,null,null,null,null,null,null,null,null,null,null,null,null,null,null,null,null,null,"適"]
[null,null,null,null,null,null,null,null,null,null,null,"消費量(※）（その他除く）"]
[null,null,null,null,null,null,null,null,null,null,null,null,"（",null,null,null,null,null,"）","GJ/年　",null,null,null,"･･･⑦"]
[null,null,null,null,null,null,null,null,null,null,null,"・当該用途における再生可能ｴﾈﾙｷﾞｰを除いた一次ｴﾈﾙｷﾞｰ"]
[null,null,null,null,null,null,null,null,null,null,null,"消費削減量（その他除く）"]
[null,null,null,null,null,null,null,null,null,null,null,null,"（",{"$f":"IF(N145=\"\",\"\",N145-N148)","v":""},null,null,null,null,"）","GJ/年　",null,null,null,"･･･⑧=⑥ - ⑦"]
[null,null,null,null,null,null,null,null,null,null,null,"・当該用途における再生可能ｴﾈﾙｷﾞｰを除いた設計一次ｴﾈﾙｷﾞｰ"]
[null,null,null,null,null,null,null,null,null,null,null,"消費量(※）（その他除く）の基準一次ｴﾈﾙｷﾞｰ消費量（その他除く）"]
[null,null,null,null,null,null,null,null,null,null,null,"からの削減率"]
[null,null,null,null,null,null,null,null,null,null,null,null,"（",{"$f":"IF(N145=\"\",\"\",ROUNDDOWN(N151/N145*100,0))","v":""},null,null,null,null,"）","％削減　",null,null,null,"･･･⑧/⑥×100（≧30％）"]
[null,null,null,null,null,null,null,null,null,null,null,null,"（※BESTについては換算後の数値）"]
[null,null,null,null,null,null,null,null,null,null,null,null,"モデル建物法の場合"]
[null,null,null,null,null,null,null,null,null,null,null,"・当該用途における再生可能ｴﾈﾙｷﾞｰを除いたBEIｍ"]
[null,null,null,null,null,null,null,null,null,null,null,null,"（",null,null,null,null,null,"）",null,null,null,null,"･･･❸"]
[null,null,null,null,null,null,null,null,null,null,null,"・当該用途における再生可能ｴﾈﾙｷﾞｰを除いた設計一次ｴﾈﾙｷﾞｰ"]
[null,null,null,null,null,null,null,null,null,null,null,"消費量（その他除く）の基準一次ｴﾈﾙｷﾞｰ消費量（その他除く）"]
[null,null,null,null,null,null,null,null,null,null,null,"からの削減率"]
[null,null,null,null,null,null,null,null,null,null,null,null,"（",{"$f":"IF(N159=\"\",\"\",(1-N159)*100)","v":""},null,null,null,null,"）","％削減　",null,null,null,"･･･(1 - ❸)×100（≧30％）"]
[null,null,null,null,null,null,"病院等",null,null,null,null,null,"通常計算法又はＢＥＳＴの場合",null,null,null,null,null,null,null,null,null,null,null,null,null,null,null,null,null,null,null,null,null,"計算書"]
[null,null,null,null,null,null,null,null,null,null,null,"・当該用途の基準一次エネルギー消費量（その他除く）"]
[null,null,null,null,null,null,null,null,null,null,null,null,"（",null,null,null,null,null,"）","GJ/年　",null,null,null,"･･･⑥"]
[null,null,null,null,null,null,null,null,null,null,null,"・当該用途における再生可能ｴﾈﾙｷﾞｰを除いた設計一次ｴﾈﾙｷﾞｰ",null,null,null,null,null,null,null,null,null,null,null,null,null,null,null,null,null,null,null,null,null,null,null,null,null,null,null,"適"]
[null,null,null,null,null,null,null,null,null,null,null,"消費量(※）（その他除く）"]
[null,null,null,null,null,null,null,null,null,null,null,null,"（",null,null,null,null,null,"）","GJ/年　",null,null,null,"･･･⑦"]
[null,null,null,null,null,null,null,null,null,null,null,"・当該用途における再生可能ｴﾈﾙｷﾞｰを除いた一次ｴﾈﾙｷﾞｰ"]
[null,null,null,null,null,null,null,null,null,null,null,"消費削減量（その他除く）"]
[null,null,null,null,null,null,null,null,null,null,null,null,"（",{"$f":"IF(N166=\"\",\"\",N166-N169)","v":""},null,null,null,null,"）","GJ/年　",null,null,null,"･･･⑧=⑥ - ⑦"]
[null,null,null,null,null,null,null,null,null,null,null,"・当該用途における再生可能ｴﾈﾙｷﾞｰを除いた設計一次ｴﾈﾙｷﾞｰ"]
[null,null,null,null,null,null,null,null,null,null,null,"消費量(※）（その他除く）の基準一次ｴﾈﾙｷﾞｰ消費量（その他除く）"]
[null,null,null,null,null,null,null,null,null,null,null,"からの削減率"]
[null,null,null,null,null,null,null,null,null,null,null,null,"（",{"$f":"IF(N166=\"\",\"\",ROUNDDOWN(N172/N166*100,0))","v":""},null,null,null,null,"）","％削減　",null,null,null,"･･･⑧/⑥×100（≧30％）"]
[null,null,null,null,null,null,null,null,null,null,null,null,"（※BESTについては換算後の数値）"]
[null,null,null,null,null,null,null,null,null,null,null,null,"モデル建物法の場合"]
[null,null,null,null,null,null,null,null,null,null,null,"・当該用途における再生可能ｴﾈﾙｷﾞｰを除いたBEIｍ"]
[null,null,null,null,null,null,null,null,null,null,null,null,"（",null,null,null,null,null,"）",null,null,null,null,"･･･❸"]
[null,null,null,null,null,null,null,null,null,null,null,"・当該用途における再生可能ｴﾈﾙｷﾞｰを除いた設計一次ｴﾈﾙｷﾞｰ"]
[null,null,null,null,null,null,null,null,null,null,null,"消費量（その他除く）の基準一次ｴﾈﾙｷﾞｰ消費量（その他除く）"]
[null,null,null,null,null,null,null,null,null,null,null,"からの削減率"]
[null,null,null,null,null,null,null,null,null,null,null,null,"（",{"$f":"IF(N180=\"\",\"\",(1-N180)*100)","v":""},null,null,null,null,"）","％削減　",null,null,null,"･･･(1 - ❸)×100（≧30％）"]
[null,null,null,null,null,null,"百貨店等",null,null,null,null,null,"通常計算法又はＢＥＳＴの場合",null,null,null,null,null,null,null,null,null,null,null,null,null,null,null,null,null,null,null,null,null,"計算書"]
[null,null,null,null,null,null,null,null,null,null,null,"・当該用途の基準一次エネルギー消費量（その他除く）"]
[null,null,null,null,null,null,null,null,null,null,null,null,"（",null,null,null,null,null,"）","GJ/年　",null,null,null,"･･･⑥"]
[null,null,null,null,null,null,null,null,null,null,null,"・当該用途における再生可能ｴﾈﾙｷﾞｰを除いた設計一次ｴﾈﾙｷﾞｰ",null,null,null,null,null,null,null,null,null,null,null,null,null,null,null,null,null,null,null,null,null,null,null,null,null,null,null,"適"]
[null,null,null,null,null,null,null,null,null,null,null,"消費量(※）（その他除く）"]
[null,null,null,null,null,null,null,null,null,null,null,null,"（",null,null,null,null,null,"）","GJ/年　",null,null,null,"･･･⑦"]
[null,null,null,null,null,null,null,null,null,null,null,"・当該用途における再生可能ｴﾈﾙｷﾞｰを除いた一次ｴﾈﾙｷﾞｰ"]
[null,null,null,null,null,null,null,null,null,null,null,"消費削減量（その他除く）"]
[null,null,null,null,null,null,null,null,null,null,null,null,"（",{"$f":"IF(N187=\"\",\"\",N187-N190)","v":""},null,null,null,null,"）","GJ/年　",null,null,null,"･･･⑧=⑥ - ⑦"]
[null,null,null,null,null,null,null,null,null,null,null,"・当該用途における再生可能ｴﾈﾙｷﾞｰを除いた設計一次ｴﾈﾙｷﾞｰ"]
[null,null,null,null,null,null,null,null,null,null,null,"消費量(※）（その他除く）の基準一次ｴﾈﾙｷﾞｰ消費量（その他除く）"]
[null,null,null,null,null,null,null,null,null,null,null,"からの削減率"]
[null,null,null,null,null,null,null,null,null,null,null,null,"（",{"$f":"IF(N187=\"\",\"\",ROUNDDOWN(N193/N187*100,0))","v":""},null,null,null,null,"）","％削減　",null,null,null,"･･･⑧/⑥×100（≧30％）"]
[null,null,null,null,null,null,null,null,null,null,null,null,"（※BESTについては換算後の数値）"]
[null,null,null,null,null,null,null,null,null,null,null,null,"モデル建物法の場合"]
[null,null,null,null,null,null,null,null,null,null,null,"・当該用途における再生可能ｴﾈﾙｷﾞｰを除いたBEIｍ"]
[null,null,null,null,null,null,null,null,null,null,null,null,"（",null,null,null,null,null,"）",null,null,null,null,"･･･❸"]
[null,null,null,null,null,null,null,null,null,null,null,"・当該用途における再生可能ｴﾈﾙｷﾞｰを除いた設計一次ｴﾈﾙｷﾞｰ"]
[null,null,null,null,null,null,null,null,null,null,null,"消費量（その他除く）の基準一次ｴﾈﾙｷﾞｰ消費量（その他除く）"]
[null,null,null,null,null,null,null,null,null,null,null,"からの削減率"]
[null,null,null,null,null,null,null,null,null,null,null,null,"（",{"$f":"IF(N201=\"\",\"\",(1-N201)*100)","v":""},null,null,null,null,"）","％削減　",null,null,null,"･･･(1 - ❸)×100（≧30％）"]
[]
[]
["確認事項",null,"確認\n項目",null,null,"設計内容（現況）説明欄",null,null,null,null,null,null,null,null,null,null,null,null,null,null,null,null,null,null,null,null,null,null,null,null,null,null,null,null,null,null,null,"設計内容\n確認欄"]
[null,null,null,null,null,"項目",null,null,null,null,null,"設計内容（現況）",null,null,null,null,null,null,null,null,null,null,null,null,null,null,null,null,null,null,null,null,null,"記載図書欄"]
["ZEＢに関する事項②",null,"「ZEBマーク」に関する表示\n\n※ZEB\nOriented\nを選択した場合\n\n※非住宅部分に含まれる全ての用途にチェック\n\n 非住宅\n 用途 2",null,null,null,"飲食店等",null,null,null,null,null,"通常計算法又はＢＥＳＴの場合",null,null,null,null,null,null,null,null,null,null,null,null,null,null,null,null,null,null,null,null,null,"計算書"]
[null,null,null,null,null,null,null,null,null,null,null,"・当該用途の基準一次エネルギー消費量（その他除く）"]
[null,null,null,null,null,null,null,null,null,null,null,null,"（",null,null,null,null,null,"）","GJ/年　",null,null,null,"･･･⑥"]
[null,null,null,null,null,null,null,null,null,null,null,"・当該用途における再生可能ｴﾈﾙｷﾞｰを除いた設計一次ｴﾈﾙｷﾞｰ",null,null,null,null,null,null,null,null,null,null,null,null,null,null,null,null,null,null,null,null,null,null,null,null,null,null,null,"適"]
[null,null,null,null,null,null,null,null,null,null,null,"消費量(※）（その他除く）"]
[null,null,null,null,null,null,null,null,null,null,null,null,"（",null,null,null,null,null,"）","GJ/年　",null,null,null,"･･･⑦"]
[null,null,null,null,null,null,null,null,null,null,null,"・当該用途における再生可能ｴﾈﾙｷﾞｰを除いた一次ｴﾈﾙｷﾞｰ"]
[null,null,null,null,null,null,null,null,null,null,null,"消費削減量（その他除く）"]
[null,null,null,null,null,null,null,null,null,null,null,null,"（",{"$f":"IF(N212=\"\",\"\",N212-N215)","v":""},null,null,null,null,"）","GJ/年　",null,null,null,"･･･⑧=⑥ - ⑦"]
[null,null,null,null,null,null,null,null,null,null,null,"・当該用途における再生可能ｴﾈﾙｷﾞｰを除いた設計一次ｴﾈﾙｷﾞｰ"]
[null,null,null,null,null,null,null,null,null,null,null,"消費量(※）（その他除く）の基準一次ｴﾈﾙｷﾞｰ消費量（その他除く）"]
[null,null,null,null,null,null,null,null,null,null,null,"からの削減率"]
[null,null,null,null,null,null,null,null,null,null,null,null,"（",{"$f":"IF(N212=\"\",\"\",ROUNDDOWN(N218/N212*100,0))","v":""},null,null,null,null,"）","％削減　",null,null,null,"･･･⑧/⑥×100（≧30％）"]
[null,null,null,null,null,null,null,null,null,null,null,null,"（※BESTについては換算後の数値）"]
[null,null,null,null,null,null,null,null,null,null,null,null,"モデル建物法の場合"]
[null,null,null,null,null,null,null,null,null,null,null,"・当該用途における再生可能ｴﾈﾙｷﾞｰを除いたBEIｍ"]
[null,null,null,null,null,null,null,null,null,null,null,null,"（",null,null,null,null,null,"）",null,null,null,null,"･･･❸"]
[null,null,null,null,null,null,null,null,null,null,null,"・当該用途における再生可能ｴﾈﾙｷﾞｰを除いた設計一次ｴﾈﾙｷﾞｰ"]
[null,null,null,null,null,null,null,null,null,null,null,"消費量（その他除く）の基準一次ｴﾈﾙｷﾞｰ消費量（その他除く）"]
[null,null,null,null,null,null,null,null,null,null,null,"からの削減率"]
[null,null,null,null,null,null,null,null,null,null,null,null,"（",{"$f":"IF(N226=\"\",\"\",(1-N226)*100)","v":""},null,null,null,null,"）","％削減　",null,null,null,"･･･(1 - ❸)×100（≧30％）"]
[null,null,null,null,null,null,"集会所等",null,null,null,null,null,"通常計算法又はＢＥＳＴの場合",null,null,null,null,null,null,null,null,null,null,null,null,null,null,null,null,null,null,null,null,null,"計算書"]
[null,null,null,null,null,null,null,null,null,null,null,"・当該用途の基準一次エネルギー消費量（その他除く）"]
[null,null,null,null,null,null,null,null,null,null,null,null,"（",null,null,null,null,null,"）","GJ/年　",null,null,null,"･･･⑥"]
[null,null,null,null,null,null,null,null,null,null,null,"・当該用途における再生可能ｴﾈﾙｷﾞｰを除いた設計一次ｴﾈﾙｷﾞｰ",null,null,null,null,null,null,null,null,null,null,null,null,null,null,null,null,null,null,null,null,null,null,null,null,null,null,null,"適"]
[null,null,null,null,null,null,null,null,null,null,null,"消費量(※）（その他除く）"]
[null,null,null,null,null,null,null,null,null,null,null,null,"（",null,null,null,null,null,"）","GJ/年　",null,null,null,"･･･⑦"]
[null,null,null,null,null,null,null,null,null,null,null,"・当該用途における再生可能ｴﾈﾙｷﾞｰを除いた一次ｴﾈﾙｷﾞｰ"]
[null,null,null,null,null,null,null,null,null,null,null,"消費削減量（その他除く）"]
[null,null,null,null,null,null,null,null,null,null,null,null,"（",{"$f":"IF(N233=\"\",\"\",N233-N236)","v":""},null,null,null,null,"）","GJ/年　",null,null,null,"･･･⑧=⑥ - ⑦"]
[null,null,null,null,null,null,null,null,null,null,null,"・当該用途における再生可能ｴﾈﾙｷﾞｰを除いた設計一次ｴﾈﾙｷﾞｰ"]
[null,null,null,null,null,null,null,null,null,null,null,"消費量(※）（その他除く）の基準一次ｴﾈﾙｷﾞｰ消費量（その他除く）"]
[null,null,null,null,null,null,null,null,null,null,null,"からの削減率"]
[null,null,null,null,null,null,null,null,null,null,null,null,"（",{"$f":"IF(N233=\"\",\"\",ROUNDDOWN(N239/N233*100,0))","v":""},null,null,null,null,"）","％削減　",null,null,null,"･･･⑧/⑥×100（≧30％）"]
[null,null,null,null,null,null,null,null,null,null,null,null,"（※BESTについては換算後の数値）"]
[null,null,null,null,null,null,null,null,null,null,null,null,"モデル建物法の場合"]
[null,null,null,null,null,null,null,null,null,null,null,"・当該用途における再生可能ｴﾈﾙｷﾞｰを除いたBEIｍ"]
[null,null,null,null,null,null,null,null,null,null,null,null,"（",null,null,null,null,null,"）",null,null,null,null,"･･･❸"]
[null,null,null,null,null,null,null,null,null,null,null,"・当該用途における再生可能ｴﾈﾙｷﾞｰを除いた設計一次ｴﾈﾙｷﾞｰ"]
[null,null,null,null,null,null,null,null,null,null,null,"消費量（その他除く）の基準一次ｴﾈﾙｷﾞｰ消費量（その他除く）"]
[null,null,null,null,null,null,null,null,null,null,null,"からの削減率"]
[null,null,null,null,null,null,null,null,null,null,null,null,"（",{"$f":"IF(N247=\"\",\"\",(1-N247)*100)","v":""},null,null,null,null,"）","％削減　",null,null,null,"･･･(1 - ❸)×100（≧30％）"]
["ＺＥＢに関する事項③",null,"※申請の対象となる範囲が、建物用途の場合",null,null,"建物全体（評価対象外を含む非住宅部分）",null,null,null,null,null,"計算手法",null,null,null,null,null,null,null,null,null,null,null,null,null,null,null,null,null,null,null,null,null,null,"計算書"]
[null,null,null,null,null,null,null,null,null,null,null,null,"通常の計算法",null,null,null,null,null,null,null,"モデル建物法",null,null,null,null,null,null,"ＢＥＳＴ"]
[]
[null,null,null,null,null,null,null,null,null,null,null,null,"通常計算法又はＢＥＳＴの場合",null,null,null,null,null,null,null,null,null,null,null,null,null,null,null,null,null,null,null,null,null,null,null,null,null,null,"適"]
[null,null,null,null,null,null,null,null,null,null,null,"・再生可能ｴﾈﾙｷﾞｰを除いた設計一次ｴﾈﾙｷﾞｰ消費量(※）（その他除く）"]
[null,null,null,null,null,null,null,null,null,null,null,null,"（",null,null,null,null,null,"）","GJ/年　",null,null,null,"･･･①"]
[null,null,null,null,null,null,null,null,null,null,null,"・基準一次エネルギー消費量（その他除く）"]
[null,null,null,null,null,null,null,null,null,null,null,null,"（",null,null,null,null,null,"）","GJ／年",null,null,null,"･･･②"]
[null,null,null,null,null,null,null,null,null,null,null,"・再生可能ｴﾈﾙｷﾞｰを除いた一次ｴﾈﾙｷﾞｰ消費削減量（その他除く）"]
[null,null,null,null,null,null,null,null,null,null,null,null,"（",{"$f":"IF(N257=\"\",\"\",N259-N257)","v":""},null,null,null,null,"）","GJ/年　",null,null,null,"･･･③=② - ①"]
[null,null,null,null,null,null,null,null,null,null,null,"・再生可能ｴﾈﾙｷﾞｰを除いた設計一次ｴﾈﾙｷﾞｰ消費量(※）（その他除く）"]
[null,null,null,null,null,null,null,null,null,null,null,"の基準一次ｴﾈﾙｷﾞｰ消費量（その他除く）からの削減率"]
[null,null,null,null,null,null,null,null,null,null,null,null,"（",{"$f":"IF(N257=\"\",\"\",ROUNDDOWN(N261/N259*100,0))","v":""},null,null,null,null,"）","％削減　",null,null,null,"･･･③/②×100（≧20％）"]
[null,null,null,null,null,null,null,null,null,null,null,null,"（※BESTについては換算後の数値）"]
[null,null,null,null,null,null,null,null,null,null,null,null,"モデル建物法の場合"]
[null,null,null,null,null,null,null,null,null,null,null,"・再生可能ｴﾈﾙｷﾞｰを除いたBEIｍ"]
[null,null,null,null,null,null,null,null,null,null,null,null,"（",null,null,null,null,null,"）",null,null,null,null,"･･･❶"]
[null,null,null,null,null,null,null,null,null,null,null,"・再生可能ｴﾈﾙｷﾞｰを除いた設計一次ｴﾈﾙｷﾞｰ消費量（その他除く）"]
[null,null,null,null,null,null,null,null,null,null,null,"の基準一次ｴﾈﾙｷﾞｰ消費量（その他除く）からの削減率"]
[null,null,null,null,null,null,null,null,null,null,null,null,"（",{"$f":"IF(N268=\"\",\"\",(1-N268)*100)","v":""},null,null,null,null,"）","％削減　",null,null,null,"･･･(1 - ❶)×100（≧20％）"]
[]
[]
["確認事項",null,"確認\n項目",null,null,"設計内容（現況）説明欄",null,null,null,null,null,null,null,null,null,null,null,null,null,null,null,null,null,null,null,null,null,null,null,null,null,null,null,null,null,null,null,"設計内容\n確認欄"]
[null,null,null,null,null,"項目",null,null,null,null,null,"設計内容（現況）",null,null,null,null,null,null,null,null,null,null,null,null,null,null,null,null,null,null,null,null,null,"記載図書欄"]
["　ＢＥＳＴに関する事項　 ",null,"BESTに関する表示\n(換算前の数値）\n",null,null,"単位面積当たりの設計一次エネルギー消費量\n（その他含み）",null,null,null,null,null,null,null,null,null,null,null,null,null,null,null,null,null,null,null,null,null,null,null,null,null,null,null,null,"計算書"]
[null,null,null,null,null,null,null,null,null,null,null,null,"BEST省エネ基準対応ツールの出力票による"]
[]
[null,null,null,null,null,null,null,null,null,null,null,null,null,null,null,null,null,null,null,null,null,null,null,null,null,null,null,null,null,null,null,null,null,null,null,null,null,null,null,"適"]
[null,null,null,null,null,"単位面積当たりの設計一次エネルギー消費量\n（その他除き）"]
[null,null,null,null,null,null,null,null,null,null,null,null,"BEST省エネ基準対応ツールの出力票による"]
[]
[]
[null,null,null,null,null,"空気調和設備等に関する単位面積当たりの基準・設計一次エネルギー消費量"]
[null,null,null,null,null,"空気調和設備",null,null,null,null,null,null,"BEST省エネ基準対応ツールの出力票による"]
[null,null,null,null,null,"機械換気設備",null,null,null,null,null,null,"BEST省エネ基準対応ツールの出力票による"]
[null,null,null,null,null,"照明設備",null,null,null,null,null,null,"BEST省エネ基準対応ツールの出力票による"]
[null,null,null,null,null,"給湯設備",null,null,null,null,null,null,"BEST省エネ基準対応ツールの出力票による"]
[null,null,null,null,null,"エネルギー利用効率化設備",null,null,null,null,null,null,"BEST省エネ基準対応ツールの出力票による"]

{"sheet":"掲載承諾書","index":10,"n_rows":77,"n_cols":45,"rows_kept":77,"cut":false,"hidden":false,"merged":[[3,44,5,48],[8,44,10,47],[11,44,12,46],[74,11,74,39],[75,7,75,19],[75,25,75,39],[47,24,47,40],[48,2,48,10],[48,11,48,23],[48,24,48,40],[39,11,39,23],[39,24,39,40],[41,2,41,10],[41,11,41,23],[41,24,41,40],[43,0,43,42],[76,11,76,39],[49,11,49,23],[49,24,49,40],[50,2,50,40],[52,2,70,39],[72,11,72,39],[73,11,73,39],[49,2,49,10],[1,0,1,40],[20,4,21,39],[23,4,24,39],[45,2,45,10],[45,11,45,23],[40,2,40,10],[40,11,40,23],[40,24,40,40],[45,24,45,40],[37,2,37,10],[37,11,37,23],[37,24,37,40],[38,2,38,10],[38,11,38,23],[38,24,38,40],[39,2,39,10],[46,2,46,10],[46,11,46,23],[46,24,46,40],[47,2,47,10],[47,11,47,23],[35,11,35,23],[35,24,35,40],[36,2,36,10],[36,11,36,23],[36,24,36,40],[35,2,35,10],[33,2,33,10],[33,11,33,23],[33,24,33,40],[34,2,34,10],[34,11,34,23],[34,24,34,40],[31,2,31,10],[31,11,31,23],[31,24,31,40],[32,2,32,10],[32,11,32,23],[32,24,32,40],[30,2,30,10],[30,11,30,23],[30,24,30,40],[28,2,28,10],[28,11,28,23],[28,24,28,40],[29,2,29,10],[29,11,29,23],[29,24,29,40],[17,0,17,42],[26,2,27,10],[26,11,27,23],[26,24,27,40],[3,37,3,38],[11,19,11,36],[15,1,15,40],[8,20,10,40],[3,25,3,28],[4,0,4,42],[3,31,3,33],[12,20,13,40]]}
["（別記参考様式第3号）"]
["BELSに係る評価物件　掲載承諾書"]
[]
[null,null,null,null,null,null,null,null,null,null,null,null,null,null,null,null,null,null,null,null,null,null,null,null,null,null,null,null,null,"年",null,null,null,null,"月",null,null,null,null,"日",null,null,null,null,"掲載先は『一般社団法人　住宅性能評価・表示協会』\nWeb上の『BELS事例紹介ページ』となります。\n"]
["（第一面）"]
[null,"一般財団法人ベターリビング 殿"]
[null,null,null,null,null,null,null,null,null,null,null,null,null,null,null,null,null,null,null,null,null,null,null,null,null,null,null,null,null,null,null,null,null,null,null,null,null,null,null,null,null,null,null,null,"https://bels.hyoukakyoukai.or.jp/cases"]
[null,null,null,null,null,null,null,null,null,null,null,null,null,null,null,null,null,null,null,"申請者（届出者）の住所又は主たる事務所の所在地"]
[null,null,null,null,null,null,null,null,null,null,null,null,null,null,null,null,null,null,null,null,{"$f":"IF('2面'!G10=\"\",\"2面を記入して下さい\",'2面'!G10)","v":"2面を記入して下さい"},null,null,null,null,null,null,null,null,null,null,null,null,null,null,null,null,null,null,null,null,null,null,null,"・評価書交付を行った月の翌月20日に掲載されます。\n　（タイミングの御指定は頂けません）\n"]
[]
[]
[null,null,null,null,null,null,null,null,null,null,null,null,null,null,null,null,null,null,null,"申請者（届出者）の氏名又は名称",null,null,null,null,null,null,null,null,null,null,null,null,null,null,null,null,null,null,null,null,null,null,null,null,"・掲載後の公開・非公開の変更は即時反映が可能です。\n"]
[null,null,null,null,null,null,null,null,null,null,null,null,null,null,null,null,null,null,null,null,{"$f":"IF(AND(BELS申請書!U15=\"\",BELS申請書!U19=\"\"),\"2面を記入して下さい\",'2面'!J8)","v":"2面を記入して下さい"}]
[]
[]
[null,"  私は、一般財団法人ベターリビングにより、ＢＥＬＳに係る評価を受けた下記物件について、一般社団法人住宅性能評価・表示協会（以下「評価協会」という。）の定めるＢＥＬＳ評価業務方法書に従い、一般財団法人ベターリビング及び評価協会に対し、評価結果等の公表について、下記のとおり承諾します。"]
[]
["記"]
[null,null,"＜ＢＥＬＳに係る評価を受けた物件＞"]
[null,null,null,"建築物の名称"]
[null,null,null,null,{"$f":"IF(質疑等連絡票!H6=\"\",\"質疑等連絡票を記入して下さい\",質疑等連絡票!H6)","v":"質疑等連絡票を記入して下さい"}]
[]
[null,null,null,"建築物の所在地"]
[null,null,null,null,{"$f":"IF(質疑等連絡票!H8=\"\",\"質疑等連絡票を記入して下さい\",質疑等連絡票!H8)","v":"質疑等連絡票を記入して下さい"}]
[]
[null,null,"＜ホームページ等への公開・非公開の選択＞"]
[null,null,"ホームページ等への\n公開・非公開の選択",null,null,null,null,null,null,null,null,"項目",null,null,null,null,null,null,null,null,null,null,null,null,"内容"]
[]
[null,null,"公開",null,null,null,null,null,null,null,null,"評価年月日",null,null,null,null,null,null,null,null,null,null,null,null,"評価書発行年月日"]
[null,null,"公開",null,null,null,null,null,null,null,null,"建築物の所在地及び地域区分",null,null,null,null,null,null,null,null,null,null,null,null,"申請書第三面（都道府県のみ）"]
[null,null,"公開",null,null,null,null,null,null,null,null,"建築物の階数、延べ面積、構造",null,null,null,null,null,null,null,null,null,null,null,null,"申請書第三面"]
[null,null,"公開",null,null,null,null,null,null,null,null,"申請対象部分の用途",null,null,null,null,null,null,null,null,null,null,null,null,"申請書第四面ほか"]
[null,null,"公開",null,null,null,null,null,null,null,null,"星による５段階のマーク",null,null,null,null,null,null,null,null,null,null,null,null,"評価書に表示された星の数"]
[null,null,"公開",null,null,null,null,null,null,null,null,"採用した評価手法",null,null,null,null,null,null,null,null,null,null,null,null,"申請書第四面ほか"]
[null,null,"公開",null,null,null,null,null,null,null,null,"BEIの値 ",null,null,null,null,null,null,null,null,null,null,null,null,"申請書第四面ほか"]
[null,null,"公開",null,null,null,null,null,null,null,null,"削減率",null,null,null,null,null,null,null,null,null,null,null,null,"評価書に表示されたエネルギー消費量の削減率"]
[null,null,"公開",null,null,null,null,null,null,null,null,"単位面積当たりの一次ｴﾈﾙｷﾞｰ消費量（設計値・基準値）",null,null,null,null,null,null,null,null,null,null,null,null,"評価書に表示された単位面積当たりの一次ｴﾈﾙｷﾞｰ消費量（設計値・基準値）"]
[null,null,"公開",null,null,null,null,null,null,null,null,"各設備の単位面積当たりの一次ｴﾈﾙｷﾞｰ消費量等（設計値・基準値）",null,null,null,null,null,null,null,null,null,null,null,null,"評価書に表示された各設備等の評価結果詳細"]
[null,null,"公開",null,null,null,null,null,null,null,null,"外皮基準への適合",null,null,null,null,null,null,null,null,null,null,null,null,"申請書第四面ほか"]
[null,null,"公開",null,null,null,null,null,null,null,null,"「ZEBマーク」又は「ZEHマーク」｢ゼロエネ相当｣「ZEH-Mマーク」に関する表示等",null,null,null,null,null,null,null,null,null,null,null,null,"申請書第四面・参考情報ほか"]
[null,null,"公開",null,null,null,null,null,null,null,null,"参考情報の有無",null,null,null,null,null,null,null,null,null,null,null,null,"申請書第四面"]
[null,null,"公開",null,null,null,null,null,null,null,null,"二次エネルギー消費量に関する項目",null,null,null,null,null,null,null,null,null,null,null,null,"評価書に表示された二次エネルギー消費量"]
[]
["（第二面）"]
[]
[null,null,null,null,null,null,null,null,null,null,null,"建築物の名称",null,null,null,null,null,null,null,null,null,null,null,null,{"$f":"IF(質疑等連絡票!H6=\"\",\"質疑等連絡票を記入して下さい\",質疑等連絡票!H6)","v":"質疑等連絡票を記入して下さい"},null,null,null,null,null,null,null,null,null,null,null,null,null,null,null,null,null,null,null,"←質疑等連絡票シート「建築物の名称」　とリンク\n\n※「建築物の名称」は　BELS評価書、プレート、ラベル、シール及び事例紹介　の全てにおいて同一としてください。"]
[null,null,null,null,null,null,null,null,null,null,null,"申請者名\n\n※「公開」の場合、公開する申請者名を右欄にご記入ください。"]
[null,null,null,null,null,null,null,null,null,null,null,"設計者名\n\n※「公開」の場合、公開する設計者名を右欄にご記入ください。"]
[null,null,null,null,null,null,null,null,null,null,null,"工事施工者名\n\n※「公開」の場合、公開する工事施工者名を右欄にご記入ください。"]
[null,null,null,null,null,null,null,null,null,null,null,"アピールポイント",null,null,null,null,null,null,null,null,null,null,null,null,"※アピールポイントは公開を希望される場合のみ、記入欄に200文字以内でご記入ください。"]
[null,null,"※アピールポイント記入欄\n"]
[]
[null,null,"1.公表の内容と公表先について\n・一般財団法人ベターリビング及び評価協会は、本承諾書において「公開」と記載されている項目又は「公開」を選択した項目について、「内容」欄に記載された情報に基づき、両機関が発行・作成するホームページや機関誌等において当該評価物件の情報を掲載します。\n\n2.記入上の注意\n・上記全ての欄に記入の上、提出してください。\n・「ホームページ等への公開・非公開の選択」の欄に「公開」と記載された項目は、個人や個別の建築物が特定されない情報により公開必須になっている項目です。\n・「ホームページ等への公開・非公開の選択」の欄に□の表示がある項目については、該当するものに■またはレでチェックしてください。\n\n3.評価協会ホームページ掲載のための注意事項\nBELS事例紹介ページでは、BELSに係る評価申請書の第二面に記載された申請者・設計者・工事施工者（以下「申請者等」という。）の氏名又は名称部分を自動的に抽出し、評価書の取得した件数等を掲載しております。そのため、同一のものが正しく抽出できるよう、申請者等の氏名又は名称は以下の項目に注意して記載してください。正しく抽出されない場合は、同一申請者等においても異なる申請者等として分類されます。\n\n(正しく抽出されない例)\n・略称の混在　（㈱・（株）は「株式会社」に統一など分類すれば正しく抽出されます）\n・全角・半角の使い方\n・同一名称の異なる事業者名（一字一句同一なもの）は同じものとして集計されます。\n（回避するために、代表者の氏名まで公開情報とするなど対策をしてください。）"]
[]
[]
[]
[]
[]
[]
[]
[]
[]
[]
[]
[]
[]
[]
[]
[]
[]
[]
[null,null,"（本件に係わる連絡先）"]
[null,null,null,"会社名："]
[null,null,null,"部署名・役職名："]
[null,null,null,"氏名："]
[null,null,null,"電話：　",null,null,null,null,null,null,null,null,null,null,null,null,null,null,null,null,null,"FAX：　"]
[null,null,null,"Email："]

{"sheet":"プレート発注書（任意）","index":11,"n_rows":48,"n_cols":14,"rows_kept":48,"cut":false,"hidden":false,"merged":[[10,9,10,15],[11,2,11,8],[48,0,49,10],[10,0,10,1],[10,2,10,6],[10,7,10,8],[41,0,42,4],[41,5,41,6],[41,7,41,8],[42,5,42,6],[42,7,42,8],[43,0,44,4],[43,5,43,6],[43,7,43,8],[44,5,44,6],[44,7,44,8],[39,0,40,4],[39,5,39,6],[39,7,39,8],[40,5,40,6],[40,7,40,8],[35,10,36,10],[36,5,36,6],[36,7,36,8],[38,0,38,4],[38,5,38,6],[38,7,38,8],[37,0,37,4],[37,5,37,6],[37,7,37,8],[35,0,36,4],[35,5,35,9],[24,0,24,3],[24,5,24,9],[27,0,27,4],[27,5,27,9],[28,0,32,4],[28,5,28,9],[29,5,29,9],[30,5,30,9],[31,5,31,9],[32,5,32,9],[20,0,20,1],[20,2,20,10],[21,0,21,1],[21,2,21,4],[21,5,21,6],[21,7,21,10],[15,0,16,1],[15,4,15,10],[16,2,16,10],[17,0,17,1],[17,2,17,6],[17,7,17,8],[17,9,17,10],[11,0,11,1],[11,9,11,10],[14,0,14,1],[14,2,14,7],[14,9,14,10],[8,0,9,1],[8,4,8,10],[9,2,9,10],[0,0,2,10],[4,0,4,4],[7,0,7,1],[7,2,7,7],[7,9,7,10]]}
["BELSプレート・シール　発注書・発送指示書 \n(ご記入の上、エクセルシートをメールに添付してお送りください。)"]
[]
[]
[]
["一般財団法人ベターリビング　宛"]
[null,null,null,null,null,null,null,null,null,"送付日",{"$f":"TODAY()","v":"2023-11-28"}]
[null,"請求書送付先"]
["会社名",null,null,null,null,null,null,null,"部署名"]
["所在地",null,"〒"]
[]
["連絡先（TEL）",null,null,null,null,null,null,"担当者氏名"]
["請求書宛名",null,null,null,null,null,null,null,null,"（送付先と異なる場合のみ）"]
[]
[null,"納品先　（プレート・シールの送付先が請求書送付先と異なる場合はご記入ください。）"]
["会社名",null,null,null,null,null,null,null,"部署名"]
["所在地",null,"〒"]
[]
["連絡先（TEL）",null,null,null,null,null,null,"担当者氏名",null," "]
[]
[null,"建築物名称　（表示の詳細については、別途ＰＤＦを添付してください。）"]
["建築物の名称"]
["評価書交付日",null,null,null,null,"評価書交付番号"]
[]
[null,"用途の別　（いずれかの○にチェックをしてください）"]
["住　宅　",null,null,null,null,"非住宅、複合建築物"]
[]
[null,"シール種類　"]
["製品項目",null,null,null,null,"サイズ",null,null,null,null,"枚数",null,"販売価格","発注価格"]
["シール",null,null,null,null,"Ａ6版タイプ（サイズ　102mm×142ｍｍ）"]
[null,null,null,null,null,"B6版タイプ（サイズ　124mm×173ｍｍ）"]
[null,null,null,null,null,"B5版タイプ（サイズ　176mm×246ｍｍ）"]
[null,null,null,null,null,"省略版横長タイプ（サイズ　100mm×40ｍｍ）"]
[null,null,null,null,null,"省略版四角タイプ（サイズ　59mm×47ｍｍ）",null,null,null,null,null,null,13500,{"$f":"11500*1.08","v":12420}]
[]
[null,"プレート種類　"]
["製品項目 ",null,null,null,null,"仕様",null,null,null,null,"数量"]
[null,null,null,null,null,"サイズ",null,"表示方法",null,"フレーム",null,null,"販売価格","発注価格"]
["室内用カウンター置きプレート\n（材質：ステンレス）",null,null,null,null,"　",null,"選択不可",null,"なし",null,null,13500,{"$f":"11500*1.08","v":12420}]
["室内用カウンター置きプレート\n（材質：透明アクリル）",null,null,null,null,null,null,null,null,"なし",null,null,13500,{"$f":"11500*1.08","v":12420}]
["屋内用プレート（材質：透明アクリル）",null,null,null,null,"A4",null,null,null,"なし",null,null,19440,{"$f":"17000*1.08","v":18360}]
[null,null,null,null,null,"A3",null,null,null,"なし",null,null,22680,{"$f":"20000*1.08","v":21600}]
["屋外対応プレート\n（材質：透明アクリル・フレーム：シルバー）",null,null,null,null,"A4",null,"選択不可",null,"シルバー",null,null,37800,{"$f":"34000*1.08","v":36720}]
[null,null,null,null,null,"A3",null,"選択不可",null,"シルバー",null,null,46440,{"$f":"42000*1.08","v":45360}]
["屋外対応プレート\n（材質：透明アクリル・フレーム：ホワイト）",null,null,null,null,"A4",null,"選択不可",null,"ホワイト",null,null,37800,{"$f":"34000*1.08","v":36720}]
[null,null,null,null,null,"A3",null,"選択不可",null,"ホワイト",null,null,46440,{"$f":"42000*1.08","v":45360}]
["※価格、仕様等は「BELSプレート・シール　アイテム一覧」を参照してください。 "]
["※納期は発注後、納入まで１４営業日程度頂きます。（土日祝日は含みません）"]
["＜その他・備考＞"]

{"sheet":"注意事項等","index":12,"n_rows":17,"n_cols":2,"rows_kept":17,"cut":false,"hidden":false,"merged":[]}
[]
[]
[null,"入力にあたっての注意事項"]
[]
[null,"・本申請書のフォームは、マクロを使用しています。使用される前にマクロを有効にして活用ください。"]
[]
[null,"・黄色の網掛け部分に文字等を入力してください。"]
[]
[null,"・青色のセルは他のセルからデータを引用していますので、入力不要です。"]
[]
[null,"・灰色のセルは黄色の網掛け部分の入力値を参照し、自動計算を行います。（編集不可）"]
[]
[null,"・□については、該当箇所をクリックするとチェックされます。チェックされた部分をクリックするとチェックは消えます。"]
[]
[null,"・各シートに保護設定をしていますが、シート上で右クリック⇒『シート保護の解除』で解除可能です。※パスワードは設定しておりません。"]
[]
[null,"・一括印刷用シートにて、各様式の一括印刷が可能です。"]

{"sheet":"更新履歴","index":13,"n_rows":95,"n_cols":2,"rows_kept":95,"cut":false,"hidden":false,"merged":[]}
["更新履歴（2018/04/01～）"]
[]
["2018-04-01","様式の変更なし。注書き（新築竣工時期、改修の竣工時期を西暦で入力）の改訂、コメント挿入、リンクの訂正。"]
["2018-05-15","・第三面【8.建築物の新築竣工時期（計画中の場合は予定時期）】に「上旬」「中旬」「下旬」を追加"]
[null,"・第四面【8.参考情報】の変更。　"]
[null,"・第四面（注意）9.【8.参考情報】の変更。　"]
[null,"・第六面【8.参考情報】の変更。　"]
[null,"・第六面（注意）7.【8.参考情報】の変更。　"]
["2018-07-09","・「平成」を削除"]
[null,"・質疑等連絡票に評価書交付希望日を追加"]
[null,"・第五面【8.ZEBに関する表示】を削除"]
[null,"・（共通）「複合建築物の部分（非住宅部分全体）」「複合建築物の部分（住宅部分全体）」等の追加関連見直し"]
[null,"・（共通）表記全般の見直し"]
["2019-07-19","・第三面【9.申請の対象とする範囲】に「建物用途」の追加等。"]
[null,"・第三面（注意）1.(9)、(10)の追加等。"]
[null,"・第四面【6.「ZEBマーク」に関する表示】に「ZEB　Oriented」の追加。"]
[null,"・第四面に【10.ZEB Oriented の場合に申告する事項】を追加。"]
[null,"・第四面(注意）11の追加等。"]
[null,"・第五面に【8.「ZEBマーク」に関する表示】、【10..ＺＥＢ　Ｏｒｉｅｎｔｅｄの場合に申告する事項】の追加。"]
[null,"・第五面（注意）6、8の追加等。"]
[null,"・第七面【8.「ZEBマーク」に関する表示】に「ZEB　Oriented」の追加。"]
[null,"・第七面に【10.ZEB Oriented の場合に申告する事項】を追加。"]
[null,"・第七面（注意）7の追加。"]
[null,"・設計内容（現況）説明書（第一面）に「建物用途」を追加。"]
[null,"・設計内容（現況）説明書（第三面）に「建物用途」等を追加。"]
[null,"・掲載承諾書に「参考情報」を追加。"]
[null,"・（共通）表記全般の見直し"]
["2019-11-18","・第三面【9.申請の対象とする範囲】「建築物全体（複合建築物の全体）」「複合建築物の部分（住宅部分全体）」に「（住戸数（　　　　戸））」を追加"]
[null,"・第四面【3.評価手法（一次エネルギー消費量の計算に用いた方法）】に「共同住宅等：□性能基準（※共用部分の評価　□対象　□除外）」等を追加"]
[null,"・第四面【4.外皮性能に関する表示】に「共同住宅等：□適合（□住戸評価　□住棟評価）・□－（対象外）」等を追加"]
[null,"・第四面（注意）に「３．【３．評価手法（一次エネルギー消費量の計算に用いた方法）】の性能基準の共用部分の評価方法の有無は、・・・」を追加"]
[null,"・第四面（注意）変更後の5.に「評価方法にかかわらず」を追加"]
[null,"・第四面（注意）に「10. 【７．｢ZEHマーク｣、｢ゼロエネ相当｣等に関する表示】【住棟】においていずれかの表示を選択する場合は、・・・」を追加"]
[null,"・第四面（注意）項目番号の変更、表現の見直し"]
[null,"・設計内容（現況）説明書（第一面）【参考】の「共用部用」を「共用部分用」に変更"]
["2020-06-03","・注意事項等にシート保護パスワードを記載、各シートにシート保護を設定"]
[null,"・設計内容（現況）説明書（第三面）の「エネルギー消費削減量」に自動計算を追加"]
["2020-07-15","・第三面(注意）1.②(3)「店舗併用住宅」→「店舗等併用住宅」に訂正。"]
["※赤字箇所","・第三面(注意）３．【８．建築物の新築竣工時期（計画中の場合は予定時期）】に「改修する場合も記載が必要です。」を追記。"]
[null,"・第四面【8.参考情報】に「等」「(注意11）」を追記。"]
[null,"・第四面【9.一戸建ての住宅でZEH Orientedの場合に申告する事項】「(注意11）」→「注意12」に変更。"]
[null,"・第四面【10.ZEB Oriented の場合に申告する事項】"]
[null,"　　「(注意12）」→「(注意13）」に変更。"]
[null,"　　「ハイブリッド給湯システム等」等の6項目の未評価技術の項目の追加。"]
[null,"・第四面(注意）3.　【３．評価手法（一次エネルギー消費量の計算に用いた方法）】"]
[null,"　　「共同住宅等」の追記。"]
[null,"　　「また、非住宅の評価手法にBEST省エネ基準対応ツールを用いる場合は、国土交通大臣が認める方法にチェックの上、（）内にBEST省エネ基準対応ツール と記載してください。」を追記。"]
[null,"・第四面(注意）12.【9.一戸建ての住宅でZEH Orientedの場合に申告する事項】"]
[null,"　　「都市部狭小地（※1）及び多雪地域（※2）に該当する場合で、」の追記。"]
[null,"　　「(※1)」の追記。"]
[null,"　　「(※2)建築基準法で規定する垂直積雪量が100cm以上に該当する地域。」の追記。"]
[null,"・第五面【9.参考情報】に「等」「(注意8）」を追記。"]
[null,"・第五面【10.ＺＥＢ　Ｏｒｉｅｎｔｅｄの場合に申告する事項】"]
[null,"　　「注意8」を「注意9」に変更。"]
[null,"　　「ハイブリッド給湯システム等」等の6項目の未評価技術の項目の追加。"]
[null,"・第五面(注意）次の4.を追加。"]
[null,"　　4．【５．評価手法（一次エネルギー消費量の計算に用いた方法）】BEST省エネ基準対応ツールを用いる場合は、国土交通大臣が認める方法にチェックの上、（）内にBEST省エネ基準対応ツールと記載してください。"]
[null,"・第五面(注意）新規4.を追加したため、従前の4.以降、条ずれ。"]
[null,"・第六面【9.参考情報】に「等」「(注意8）」を追記。"]
[null,"・第六面(注意）8.　【9.参考情報】「評価書の参考情報に記載を希望する」の後に「、」を追記。"]
[null,"・第六面(注意）９. 【10．店舗等併用住宅の住戸部分でＺＥＨ　Ｏｒｉｅｎｔｅｄの場合に申告する事項】"]
[null,"　　「及び建築基準法で規定する垂直積雪量が100cm 以上に該当する地域」を追記。"]
[null,"・第七面【9.参考情報】に「等」「(注意7）」を追記。"]
[null,"・第七面【10.ＺＥＢ　Ｏｒｉｅｎｔｅｄの場合に申告する事項】"]
[null,"　　「注意7」を「注意8」に変更。"]
[null,"　　「ハイブリッド給湯システム等」等の6項目の未評価技術の項目の追加。"]
[null,"・第七面(注意）次の4.を追加。"]
[null,"　　4．【５．評価手法（一次エネルギー消費量の計算に用いた方法）】BEST省エネ基準対応ツールを用いる場合は、国土交通大臣が認める方法にチェックの上、（）内にBEST省エネ基準対応ツールと記載してください。"]
[null,"・第七面(注意）新規4.を追加したため、従前の4.以降、条ずれ。"]
[null,"・設計内容説明書(第三面）【非住宅用】【一次エネルギー消費量等に関する事項】表"]
[null,"　　・一次エネルギー消費量に「BEST省エネ基準対応ツール」等を追記"]
[null,"　　・設備の概要　設備機器に係る概要に「（BESTを除く）」を追記。"]
[null,"　　・ZEBに関する事項①　再生可能エネルギー除き　「通常の計算方法の場合」に「BESTの場合(換算後の数値）」選択肢を追加。"]
[null,"　　・ZEBに関する事項②　事務所等～集会場等　全ての用途"]
[null,"　　　　・「通常計算法」→「通常計算法又はBESTの場合」に変更。"]
[null,"　　　　・「設計一次エネルギー消費量」に「(※）」を追記。"]
[null,"　　　　・「(※BESTについては換算後の数値）」を追記。"]
[null,"　　・ZEBに関する事項③"]
[null,"　　　　・「通常計算法」→「通常計算法又はBESTの場合」に変更。"]
[null,"　　　　・「設計一次エネルギー消費量」に「(※）」を追記。"]
[null,"　　　　・「(※BESTについては換算後の数値）」を追記。"]
[null,"　　・「BESTに関する事項」表を新規追加。"]
["2021-04-01","・第一面『代表者の氏名』欄の押印表記を削除。"]
[null,"・委任状から押印を削除。"]
[null,"・掲載承諾書『申請者の氏名又は名称』欄の押印表記を削除。"]
[null,"・第二面・別紙を追加。（連名申請用）"]
["2021-05-07","・委任状を削除。"]
[null,"・第二面等、参照式修正"]
["2021-07-01","・掲載承諾書の事例掲載ページへのリンクを修正"]
["2021-10-01","・設計内容説明書の不具合修正"]
[null,"・一括印刷機能の追加"]
["2022-10-01","・連絡先票に評価書紙面の必要有無選択欄追加"]
[null,"・設計内容説明書(第三面）【非住宅用】【一次エネルギー消費量等に関する事項】表"]
[null,"　・再生可能エネルギー欄に売電有無追加"]
["2023-12-01","・プレート発注書を追加"]

{"sheet":"一括印刷用","index":14,"n_rows":34,"n_cols":10,"rows_kept":34,"cut":false,"hidden":false,"merged":[[17,5,18,8],[19,5,20,8],[21,5,24,8],[5,5,6,9],[29,4,30,4],[11,4,12,4],[13,4,14,4],[15,4,16,4],[7,0,8,0],[9,0,10,0],[11,0,12,0],[15,0,16,0],[25,0,26,0],[27,0,28,0],[29,0,30,0],[17,0,24,0],[13,0,14,0],[11,1,12,3],[13,1,14,3],[15,1,16,3],[5,1,6,3],[5,4,6,4],[7,1,8,3],[7,4,8,4],[9,1,10,3],[9,4,10,4],[31,1,32,3],[33,1,34,3],[31,4,32,4],[33,4,34,4],[17,9,24,12],[17,1,18,3],[17,4,18,4],[19,1,20,3],[19,4,20,4],[21,1,24,3],[21,4,24,4],[25,1,26,3],[25,4,26,4],[27,1,28,3],[27,4,28,4],[29,1,30,3]]}
[]
[]
[]
[]
[]
[null,"印刷対象シート名",null,null,"印刷指定","※ON/OFFをクリックで印刷対象の変更が可能です。"]
[]
["必須","質疑等連絡票"]
[]
["必須","BELS申請書"]
[]
["必須","2面"]
[]
[null,"2面 （別紙）",null,null,null,"※必要な場合のみ"]
[]
["必須","3面"]
[]
["いずれか\n必須","4面（建築物全体用）",null,null,null,"←建築全体評価の場合",null,null,null,"※4面・5面・7面は申請対象範囲に合わせて\n　いずれかを提出して下さい。"]
[]
[null,"5面 (非住宅部分用)",null,null,null,"←建築物のうち、部分又は用途評価の場合"]
[]
[null,"7面 (複合建築物の部分（非住宅全体))",null,null,null,"←住宅・非住宅複合建築物の場合"]
[]
[]
[]
["必須","設内1"]
[]
["必須","設内3（非住宅用）"]
[]
["必須","掲載承諾書"]
[]
[null,"注意事項等",null,null,null,"※印刷不要"]
[]
[null,"更新履歴",null,null,null,"※印刷不要"]